Workbook

Sheet Parametros
A3: aux | C3: Año base | D3: año | E3: mes
A4: =D4&E4 -> 20241 | B4: 2024-01-01 | D4: =YEAR(B4) -> 2024 | E4: =MONTH(B4) -> 1
A5: =D5&E5 -> 20242 | B5: 2024-02-01 | D5: =YEAR(B5) -> 2024 | E5: =MONTH(B5) -> 2
A6: 20243 | B6: 2024-03-01 | D6: 2024 | E6: 3
A7: 20244 | B7: 2024-04-01 | D7: 2024 | E7: 4
A8: 20245 | B8: 2024-05-01 | D8: 2024 | E8: 5
A9: 20246 | B9: 2024-06-01 | D9: 2024 | E9: 6
A10: 20247 | B10: 2024-07-01 | C10: 1 | D10: 2024 | E10: 7
A11: 20248 | B11: 2024-08-01 | C11: 1 | D11: 2024 | E11: 8
A12: 20249 | B12: 2024-09-01 | C12: 1 | D12: 2024 | E12: 9
A13: 202410 | B13: 2024-10-01 | C13: 1 | D13: 2024 | E13: 10
A14: 202411 | B14: 2024-11-01 | C14: 1 | D14: 2024 | E14: 11
A15: 202412 | B15: 2024-12-01 | C15: 1 | D15: 2024 | E15: 12
A16: 20251 | B16: 2025-01-01 | C16: 1 | D16: 2025 | E16: 1
A17: 20252 | B17: 2025-02-01 | C17: 1 | D17: 2025 | E17: 2
A18: 20253 | B18: 2025-03-01 | C18: 1 | D18: 2025 | E18: 3
A19: 20254 | B19: 2025-04-01 | C19: 1 | D19: 2025 | E19: 4
A20: 20255 | B20: 2025-05-01 | C20: 1 | D20: 2025 | E20: 5
A21: 20256 | B21: 2025-06-01 | C21: 1 | D21: 2025 | E21: 6
A22: 20257 | B22: 2025-07-01 | D22: 2025 | E22: 7
A23: 20258 | B23: 2025-08-01 | D23: 2025 | E23: 8
A24: 20259 | B24: 2025-09-01 | D24: 2025 | E24: 9
A25: 202510 | B25: 2025-10-01 | D25: 2025 | E25: 10
A26: 202511 | B26: 2025-11-01 | D26: 2025 | E26: 11
A27: 202512 | B27: 2025-12-01 | D27: 2025 | E27: 12
A28: 20261 | B28: 2026-01-01 | D28: 2026 | E28: 1
A29: 20262 | B29: 2026-02-01 | D29: 2026 | E29: 2
A30: 20263 | B30: 2026-03-01 | D30: 2026 | E30: 3
A31: 20264 | B31: 2026-04-01 | D31: 2026 | E31: 4
A32: 20265 | B32: 2026-05-01 | D32: 2026 | E32: 5
A33: 20266 | B33: 2026-06-01 | D33: 2026 | E33: 6
A34: 20267 | B34: 2026-07-01 | D34: 2026 | E34: 7
A35: 20268 | B35: 2026-08-01 | D35: 2026 | E35: 8
A36: 20269 | B36: 2026-09-01 | D36: 2026 | E36: 9
A37: 202610 | B37: 2026-10-01 | D37: 2026 | E37: 10
A38: 202611 | B38: 2026-11-01 | D38: 2026 | E38: 11
A39: 202612 | B39: 2026-12-01 | D39: 2026 | E39: 12

Sheet Energ_operada
A3: =[1]Cuadro!A3 -> Detalles | B3: =[1]Cuadro!FZ3 -> 2024-01-01 | C3: =[1]Cuadro!GA3 -> 2024-02-01 | D3: =[1]Cuadro!GB3 -> 2024-03-01 | E3: =[1]Cuadro!GC3 -> 2024-04-01 | F3: =[1]Cuadro!GD3 -> 2024-05-01 | G3: =[1]Cuadro!GE3 -> 2024-06-01 | H3: =[1]Cuadro!GF3 -> 2024-07-01 | I3: =[1]Cuadro!GG3 -> 2024-08-01 | J3: =[1]Cuadro!GH3 -> 2024-09-01 | K3: =[1]Cuadro!GI3 -> 2024-10-01 | L3: =[1]Cuadro!GJ3 -> 2024-11-01 | M3: =[1]Cuadro!GK3 -> 2024-12-01 | N3: =[1]Cuadro!GL3 -> 2025-01-01 | O3: =[1]Cuadro!GM3 -> 2025-02-01 | P3: =[1]Cuadro!GN3 -> 2025-03-01 | Q3: =[1]Cuadro!GO3 -> 2025-04-01 | R3: =[1]Cuadro!GP3 -> 2025-05-01 | S3: =[1]Cuadro!GQ3 -> 2025-06-01 | T3: =[1]Cuadro!GR3 -> 2025-07-01 | U3: =[1]Cuadro!GS3 -> 2025-08-01 | V3: =[1]Cuadro!GT3 -> 2025-09-01 | W3: =[1]Cuadro!GU3 -> 2025-10-01 | X3: =[1]Cuadro!GV3 -> 2025-11-01 | Y3: =[1]Cuadro!GW3 -> 2025-12-01 | Z3: =[1]Cuadro!GX3 -> 00:00:00 | AA3: =[1]Cuadro!GY3 -> 00:00:00 | AB3: =[1]Cuadro!GZ3 -> 00:00:00 | AC3: =[1]Cuadro!HA3 -> 00:00:00 | AD3: =[1]Cuadro!HB3 -> 00:00:00 | AE3: =[1]Cuadro!HC3 -> 00:00:00
A4: =[1]Cuadro!A4 -> Compra SIN | B4: =[1]Cuadro!FZ4 -> 323930.4763 | C4: =[1]Cuadro!GA4 -> 295286.5853 | D4: =[1]Cuadro!GB4 -> 334507.6543 | E4: =[1]Cuadro!GC4 -> 328416.596 | F4: =[1]Cuadro!GD4 -> 336190.3557 | G4: =[1]Cuadro!GE4 -> 310516.2533 | H4: =[1]Cuadro!GF4 -> 322563.0466 | I4: =[1]Cuadro!GG4 -> 320514.7382 | J4: =[1]Cuadro!GH4 -> 308781.2568 | K4: =[1]Cuadro!GI4 -> 314425.4432 | L4: =[1]Cuadro!GJ4 -> 286119.9746 | M4: =[1]Cuadro!GK4 -> 313503.2477 | N4: =[1]Cuadro!GL4 -> 315215.8853 | O4: =[1]Cuadro!GM4 -> 289601.6233 | P4: =[1]Cuadro!GN4 -> 320559.5834 | Q4: =[1]Cuadro!GO4 -> 321497.1062 | R4: =[1]Cuadro!GP4 -> 324461.059 | S4: =[1]Cuadro!GQ4 -> 305690.7072 | T4: =[1]Cuadro!GR4 -> 324616.2554 | U4: =[1]Cuadro!GS4 -> 315870.1992 | V4: =[1]Cuadro!GT4 -> 0 | W4: =[1]Cuadro!GU4 -> 0 | X4: =[1]Cuadro!GV4 -> 0 | Y4: =[1]Cuadro!GW4 -> 0 | Z4: =[1]Cuadro!GX4 -> 0 | AA4: =[1]Cuadro!GY4 -> 0 | AB4: =[1]Cuadro!GZ4 -> 0 | AC4: =[1]Cuadro!HA4 -> 0 | AD4: =[1]Cuadro!HB4 -> 0 | AE4: =[1]Cuadro!HC4 -> 0
A5: =[1]Cuadro!A5 -> Compra Sistemas Regionales | B5: =[1]Cuadro!FZ5 -> 6838.547 | C5: =[1]Cuadro!GA5 -> 6394.983 | D5: =[1]Cuadro!GB5 -> 7393.714 | E5: =[1]Cuadro!GC5 -> 7034.816 | F5: =[1]Cuadro!GD5 -> 7181.056 | G5: =[1]Cuadro!GE5 -> 6610.831 | H5: =[1]Cuadro!GF5 -> 7020.132 | I5: =[1]Cuadro!GG5 -> 6992.277 | J5: =[1]Cuadro!GH5 -> 6717.74 | K5: =[1]Cuadro!GI5 -> 7029.907 | L5: =[1]Cuadro!GJ5 -> 6546.163 | M5: =[1]Cuadro!GK5 -> 6880.327 | N5: =[1]Cuadro!GL5 -> 6844.553 | O5: =[1]Cuadro!GM5 -> 6290.62255 | P5: =[1]Cuadro!GN5 -> 7342.403 | Q5: =[1]Cuadro!GO5 -> 7258.460007 | R5: =[1]Cuadro!GP5 -> 7125.791 | S5: =[1]Cuadro!GQ5 -> 6627.813 | T5: =[1]Cuadro!GR5 -> 7261.608 | U5: =[1]Cuadro!GS5 -> 7005.070667 | V5: =[1]Cuadro!GT5 -> 0 | W5: =[1]Cuadro!GU5 -> 0 | X5: =[1]Cuadro!GV5 -> 0 | Y5: =[1]Cuadro!GW5 -> 0 | Z5: =[1]Cuadro!GX5 -> 0 | AA5: =[1]Cuadro!GY5 -> 0 | AB5: =[1]Cuadro!GZ5 -> 0 | AC5: =[1]Cuadro!HA5 -> 0 | AD5: =[1]Cuadro!HB5 -> 0 | AE5: =[1]Cuadro!HC5 -> 0
A6: =[1]Cuadro!A6 -> Compra ACP | B6: =[1]Cuadro!FZ6 -> -37.393 | C6: =[1]Cuadro!GA6 -> -74.74 | D6: =[1]Cuadro!GB6 -> -46.304 | E6: =[1]Cuadro!GC6 -> -55.869 | F6: =[1]Cuadro!GD6 -> -43.807 | G6: =[1]Cuadro!GE6 -> -52.528 | H6: =[1]Cuadro!GF6 -> -62.582 | I6: =[1]Cuadro!GG6 -> -50.395 | J6: =[1]Cuadro!GH6 -> -49.698 | K6: =[1]Cuadro!GI6 -> -50.674 | L6: =[1]Cuadro!GJ6 -> -52.187 | M6: =[1]Cuadro!GK6 -> -64.011 | N6: =[1]Cuadro!GL6 -> -30.897 | O6: =[1]Cuadro!GM6 -> -56.72 | P6: =[1]Cuadro!GN6 -> -29.618 | Q6: =[1]Cuadro!GO6 -> -69.352 | R6: =[1]Cuadro!GP6 -> -24.469 | S6: =[1]Cuadro!GQ6 -> -9.118 | T6: =[1]Cuadro!GR6 -> -35.45676667 | U6: =[1]Cuadro!GS6 -> -33.60275333 | V6: =[1]Cuadro!GT6 -> 0 | W6: =[1]Cuadro!GU6 -> 0 | X6: =[1]Cuadro!GV6 -> 0 | Y6: =[1]Cuadro!GW6 -> 0 | Z6: =[1]Cuadro!GX6 -> 0 | AA6: =[1]Cuadro!GY6 -> 0 | AB6: =[1]Cuadro!GZ6 -> 0 | AC6: =[1]Cuadro!HA6 -> 0 | AD6: =[1]Cuadro!HB6 -> 0 | AE6: =[1]Cuadro!HC6 -> 0
A7: =[1]Cuadro!A7 -> Puntos Frontera con EDEMET | B7: =[1]Cuadro!FZ7 -> 0 | C7: =[1]Cuadro!GA7 -> 0 | D7: =[1]Cuadro!GB7 -> 0 | E7: =[1]Cuadro!GC7 -> 0 | F7: =[1]Cuadro!GD7 -> 0 | G7: =[1]Cuadro!GE7 -> 0 | H7: =[1]Cuadro!GF7 -> 0 | I7: =[1]Cuadro!GG7 -> 0 | J7: =[1]Cuadro!GH7 -> 0 | K7: =[1]Cuadro!GI7 -> 0 | L7: =[1]Cuadro!GJ7 -> 0 | M7: =[1]Cuadro!GK7 -> 0 | N7: =[1]Cuadro!GL7 -> 0 | O7: =[1]Cuadro!GM7 -> 0 | P7: =[1]Cuadro!GN7 -> 0 | Q7: =[1]Cuadro!GO7 -> 0 | R7: =[1]Cuadro!GP7 -> 0 | S7: =[1]Cuadro!GQ7 -> 0 | T7: =[1]Cuadro!GR7 -> 0 | U7: =[1]Cuadro!GS7 -> 0 | V7: =[1]Cuadro!GT7 -> 0 | W7: =[1]Cuadro!GU7 -> 0 | X7: =[1]Cuadro!GV7 -> 0 | Y7: =[1]Cuadro!GW7 -> 0 | Z7: =[1]Cuadro!GX7 -> 0 | AA7: =[1]Cuadro!GY7 -> 0 | AB7: =[1]Cuadro!GZ7 -> 0 | AC7: =[1]Cuadro!HA7 -> 0 | AD7: =[1]Cuadro!HB7 -> 0 | AE7: =[1]Cuadro!HC7 -> 0
A8: =[1]Cuadro!A8 -> Energia para Grandes Clientes Habilitados | B8: =[1]Cuadro!FZ8 -> 72588.29524 | C8: =[1]Cuadro!GA8 -> 69983.83729 | D8: =[1]Cuadro!GB8 -> 75307.48833 | E8: =[1]Cuadro!GC8 -> 72943.94008 | F8: =[1]Cuadro!GD8 -> 73627.36555 | G8: =[1]Cuadro!GE8 -> 65828.25445 | H8: =[1]Cuadro!GF8 -> 74538.16513 | I8: =[1]Cuadro!GG8 -> 75558.26353 | J8: =[1]Cuadro!GH8 -> 74690.68437 | K8: =[1]Cuadro!GI8 -> 73574.99951 | L8: =[1]Cuadro!GJ8 -> 72024.73719 | M8: =[1]Cuadro!GK8 -> 76425.46647 | N8: =[1]Cuadro!GL8 -> 72669.46162 | O8: =[1]Cuadro!GM8 -> 69273.70752 | P8: =[1]Cuadro!GN8 -> 78693.83532 | Q8: =[1]Cuadro!GO8 -> 69101.86694 | R8: =[1]Cuadro!GP8 -> 73786.74256 | S8: =[1]Cuadro!GQ8 -> 73023.47371 | T8: =[1]Cuadro!GR8 -> 75800.22523 | U8: =[1]Cuadro!GS8 -> 74206.7061 | V8: =[1]Cuadro!GT8 -> 0 | W8: =[1]Cuadro!GU8 -> 0 | X8: =[1]Cuadro!GV8 -> 0 | Y8: =[1]Cuadro!GW8 -> 0 | Z8: =[1]Cuadro!GX8 -> 0 | AA8: =[1]Cuadro!GY8 -> 0 | AB8: =[1]Cuadro!GZ8 -> 0 | AC8: =[1]Cuadro!HA8 -> 0 | AD8: =[1]Cuadro!HB8 -> 0 | AE8: =[1]Cuadro!HC8 -> 0
A9: =[1]Cuadro!A9 -> Compra sin 115-11 | B9: =[1]Cuadro!FZ9 -> 403319.9255 | C9: =[1]Cuadro!GA9 -> 371590.6656 | D9: =[1]Cuadro!GB9 -> 417162.5526 | E9: =[1]Cuadro!GC9 -> 408339.4831 | F9: =[1]Cuadro!GD9 -> 416954.9703 | G9: =[1]Cuadro!GE9 -> 382902.8108 | H9: =[1]Cuadro!GF9 -> 404058.7617 | I9: =[1]Cuadro!GG9 -> 403014.8837 | J9: =[1]Cuadro!GH9 -> 390139.9831 | K9: =[1]Cuadro!GI9 -> 394979.6757 | L9: =[1]Cuadro!GJ9 -> 364638.6878 | M9: =[1]Cuadro!GK9 -> 396745.0302 | N9: =[1]Cuadro!GL9 -> 394699.0029 | O9: =[1]Cuadro!GM9 -> 365109.2334 | P9: =[1]Cuadro!GN9 -> 406566.2037 | Q9: =[1]Cuadro!GO9 -> 397788.0811 | R9: =[1]Cuadro!GP9 -> 405349.1235 | S9: =[1]Cuadro!GQ9 -> 385332.8759 | T9: =[1]Cuadro!GR9 -> 407642.6319 | U9: =[1]Cuadro!GS9 -> 397048.3732 | V9: =[1]Cuadro!GT9 -> 0 | W9: =[1]Cuadro!GU9 -> 0 | X9: =[1]Cuadro!GV9 -> 0 | Y9: =[1]Cuadro!GW9 -> 0 | Z9: =[1]Cuadro!GX9 -> 0 | AA9: =[1]Cuadro!GY9 -> 0 | AB9: =[1]Cuadro!GZ9 -> 0 | AC9: =[1]Cuadro!HA9 -> 0 | AD9: =[1]Cuadro!HB9 -> 0 | AE9: =[1]Cuadro!HC9 -> 0
A10: =[1]Cuadro!A10 -> Energia hacia EDEMET (115-11) | B10: =[1]Cuadro!FZ10 -> 27744.33252 | C10: =[1]Cuadro!GA10 -> 23545.46486 | D10: =[1]Cuadro!GB10 -> 22604.5916 | E10: =[1]Cuadro!GC10 -> 24412.23478 | F10: =[1]Cuadro!GD10 -> 21497.84542 | G10: =[1]Cuadro!GE10 -> 30022.3342 | H10: =[1]Cuadro!GF10 -> 30096.4068 | I10: =[1]Cuadro!GG10 -> 29634.60413 | J10: =[1]Cuadro!GH10 -> 32100.61777 | K10: =[1]Cuadro!GI10 -> 28167.22683 | L10: =[1]Cuadro!GJ10 -> 5477.451657 | M10: =[1]Cuadro!GK10 -> 21526.44017 | N10: =[1]Cuadro!GL10 -> 22458.31758 | O10: =[1]Cuadro!GM10 -> 20748.87369 | P10: =[1]Cuadro!GN10 -> 21688.65707 | Q10: =[1]Cuadro!GO10 -> 20366.92827 | R10: =[1]Cuadro!GP10 -> 16837.99808 | S10: =[1]Cuadro!GQ10 -> 18695.49357 | T10: =[1]Cuadro!GR10 -> 18795.54118 | U10: =[1]Cuadro!GS10 -> 17347.60798 | V10: =[1]Cuadro!GT10 -> 0 | W10: =[1]Cuadro!GU10 -> 0 | X10: =[1]Cuadro!GV10 -> 0 | Y10: =[1]Cuadro!GW10 -> 0 | Z10: =[1]Cuadro!GX10 -> 0 | AA10: =[1]Cuadro!GY10 -> 0 | AB10: =[1]Cuadro!GZ10 -> 0 | AC10: =[1]Cuadro!HA10 -> 0 | AD10: =[1]Cuadro!HB10 -> 0 | AE10: =[1]Cuadro!HC10 -> 0
A11: =[1]Cuadro!A11 -> COMPRA TOTAL | B11: =[1]Cuadro!FZ11 -> 431064.2581 | C11: =[1]Cuadro!GA11 -> 395136.1304 | D11: =[1]Cuadro!GB11 -> 439767.1442 | E11: =[1]Cuadro!GC11 -> 432751.7179 | F11: =[1]Cuadro!GD11 -> 438452.8157 | G11: =[1]Cuadro!GE11 -> 412925.145 | H11: =[1]Cuadro!GF11 -> 434155.1685 | I11: =[1]Cuadro!GG11 -> 432649.4878 | J11: =[1]Cuadro!GH11 -> 422240.6009 | K11: =[1]Cuadro!GI11 -> 423146.9026 | L11: =[1]Cuadro!GJ11 -> 370116.1395 | M11: =[1]Cuadro!GK11 -> 418271.4703 | N11: =[1]Cuadro!GL11 -> 417157.3205 | O11: =[1]Cuadro!GM11 -> 385858.1071 | P11: =[1]Cuadro!GN11 -> 428254.8608 | Q11: =[1]Cuadro!GO11 -> 418155.0094 | R11: =[1]Cuadro!GP11 -> 422187.1216 | S11: =[1]Cuadro!GQ11 -> 404028.3695 | T11: =[1]Cuadro!GR11 -> 426438.1731 | U11: =[1]Cuadro!GS11 -> 414395.9812 | V11: =[1]Cuadro!GT11 -> 0 | W11: =[1]Cuadro!GU11 -> 0 | X11: =[1]Cuadro!GV11 -> 0 | Y11: =[1]Cuadro!GW11 -> 0 | Z11: =[1]Cuadro!GX11 -> 0 | AA11: =[1]Cuadro!GY11 -> 0 | AB11: =[1]Cuadro!GZ11 -> 0 | AC11: =[1]Cuadro!HA11 -> 0 | AD11: =[1]Cuadro!HB11 -> 0 | AE11: =[1]Cuadro!HC11 -> 0
A16: mes | B16: Compra total | C16: año base
A17: =TRANSPOSE(B3:AY3) -> 2024-01-01 | B17: =TRANSPOSE(B11:AY11) -> 431064.2581 | C17: =Parametros!C4 -> 0
A18: 2024-02-01 | B18: 395136.1304 | C18: =Parametros!C5 -> 0
A19: 2024-03-01 | B19: 439767.1442 | C19: =Parametros!C6 -> 0
A20: 2024-04-01 | B20: 432751.7179 | C20: =Parametros!C7 -> 0
A21: 2024-05-01 | B21: 438452.8157 | C21: =Parametros!C8 -> 0
A22: 2024-06-01 | B22: 412925.145 | C22: =Parametros!C9 -> 0
A23: 2024-07-01 | B23: 434155.1685 | C23: =Parametros!C10 -> 1
A24: 2024-08-01 | B24: 432649.4878 | C24: =Parametros!C11 -> 1
A25: 2024-09-01 | B25: 422240.6009 | C25: =Parametros!C12 -> 1
A26: 2024-10-01 | B26: 423146.9026 | C26: =Parametros!C13 -> 1
A27: 2024-11-01 | B27: 370116.1395 | C27: =Parametros!C14 -> 1
A28: 2024-12-01 | B28: 418271.4703 | C28: =Parametros!C15 -> 1
A29: 2025-01-01 | B29: 417157.3205 | C29: =Parametros!C16 -> 1
A30: 2025-02-01 | B30: 385858.1071 | C30: =Parametros!C17 -> 1
A31: 2025-03-01 | B31: 428254.8608 | C31: =Parametros!C18 -> 1
A32: 2025-04-01 | B32: 418155.0094 | C32: =Parametros!C19 -> 1
A33: 2025-05-01 | B33: 422187.1216 | C33: =Parametros!C20 -> 1
A34: 2025-06-01 | B34: 404028.3695 | C34: =Parametros!C21 -> 1
A35: 2025-07-01 | B35: 426438.1731 | C35: =Parametros!C22 -> 0
A36: 2025-08-01 | B36: 414395.9812 | C36: =Parametros!C23 -> 0
A37: 2025-09-01 | B37: 0 | C37: =Parametros!C24 -> 0
A38: 2025-10-01 | B38: 0 | C38: =Parametros!C25 -> 0
A39: 2025-11-01 | B39: 0 | C39: =Parametros!C26 -> 0
A40: 2025-12-01 | B40: 0 | C40: =Parametros!C27 -> 0
A41: 00:00:00 | B41: 0 | C41: =Parametros!C28 -> 0
A42: 00:00:00 | B42: 0 | C42: =Parametros!C29 -> 0
A43: 00:00:00 | B43: 0 | C43: =Parametros!C30 -> 0
A44: 00:00:00 | B44: 0 | C44: =Parametros!C31 -> 0
A45: 00:00:00 | B45: 0 | C45: =Parametros!C32 -> 0
A46: 00:00:00 | B46: 0 | C46: =Parametros!C33 -> 0
A47: 00:00:00 | B47: 0 | C47: =Parametros!C34 -> 0
A48: 00:00:00 | B48: 0 | C48: =Parametros!C35 -> 0
A49: 00:00:00 | B49: 0 | C49: =Parametros!C36 -> 0
A50: 00:00:00 | B50: 0 | C50: =Parametros!C37 -> 0
A51: 00:00:00 | B51: 0 | C51: =Parametros!C38 -> 0
A52: 00:00:00 | B52: 0 | C52: =Parametros!C39 -> 0
A53: 00:00:00 | B53: 0 | C53: =Parametros!C40 -> 0
A54: 00:00:00 | B54: 0 | C54: =Parametros!C41 -> 0
A55: 00:00:00 | B55: 0 | C55: =Parametros!C42 -> 0
A56: 00:00:00 | B56: 0 | C56: =Parametros!C43 -> 0
A57: 00:00:00 | B57: 0 | C57: =Parametros!C44 -> 0
A58: 00:00:00 | B58: 0 | C58: =Parametros!C45 -> 0
A59: 00:00:00 | B59: 0 | C59: =Parametros!C46 -> 0
A60: 00:00:00 | B60: 0 | C60: =Parametros!C47 -> 0
A61: 00:00:00 | B61: 0 | C61: =Parametros!C48 -> 0
A62: 00:00:00 | B62: 0 | C62: =Parametros!C49 -> 0
A63: 00:00:00 | B63: 0 | C63: =Parametros!C50 -> 0
A64: 00:00:00 | B64: 0 | C64: =Parametros!C51 -> 0
A65: 00:00:00 | B65: 0 | C65: =Parametros!C52 -> 0
A66: 00:00:00 | B66: 0 | C66: =Parametros!C53 -> 0

Sheet Info_Perdidas
B8: Pérdidas (MWh)
B9: PT BT | C9: PT MT | D9: PT AT (sin Edemet) | E9: PT Edemet | F9: PT AT total | G9: PNT | H9: Total | I9: Año base
A10: 2024-01-01 | B10: =SUM([2]Cuadro!AM103:AO103) -> 4300.158418 | C10: =SUM([2]Cuadro!AP103:AR103) -> 13693.56392 | D10: =SUM([2]Cuadro!AS103:AU103) -> 2655.293045 | E10: =-([2]Cuadro!AE103-[2]Cuadro!B103)-[2]Cuadro!AD103 -> 194.2103277 | F10: =D10+E10 -> 2849.503373 | G10: =SUM([2]Cuadro!BN103:BP103) -> 29549.20147 | H10: =SUM(B10:E10,G10) -> 50392.42718 | I10: =Parametros!C4 -> 0
A11: 2024-02-01 | B11: =SUM([2]Cuadro!AM104:AO104) -> 3592.639194 | C11: =SUM([2]Cuadro!AP104:AR104) -> 12251.53454 | D11: =SUM([2]Cuadro!AS104:AU104) -> 2401.625215 | E11: =-([2]Cuadro!AE104-[2]Cuadro!B104)-[2]Cuadro!AD104 -> 164.818254 | F11: =D11+E11 -> 2566.443469 | G11: =SUM([2]Cuadro!BN104:BP104) -> 13941.57245 | H11: =SUM(B11:E11,G11) -> 32352.18965 | I11: =Parametros!C5 -> 0
A12: 2024-03-01 | B12: =SUM([2]Cuadro!AM105:AO105) -> 4608.776078 | C12: =SUM([2]Cuadro!AP105:AR105) -> 13425.32969 | D12: =SUM([2]Cuadro!AS105:AU105) -> 2525.068277 | E12: =-([2]Cuadro!AE105-[2]Cuadro!B105)-[2]Cuadro!AD105 -> 158.2321412 | F12: 2683.300418 | G12: =SUM([2]Cuadro!BN105:BP105) -> 26799.62905 | H12: 47517.03523 | I12: =Parametros!C6 -> 0
A13: 2024-04-01 | B13: =SUM([2]Cuadro!AM106:AO106) -> 4344.044661 | C13: =SUM([2]Cuadro!AP106:AR106) -> 13502.37864 | D13: =SUM([2]Cuadro!AS106:AU106) -> 2546.323857 | E13: =-([2]Cuadro!AE106-[2]Cuadro!B106)-[2]Cuadro!AD106 -> 214.8276661 | F13: 2761.151523 | G13: =SUM([2]Cuadro!BN106:BP106) -> 21100.74993 | H13: 41708.32476 | I13: =Parametros!C7 -> 0
A14: 2024-05-01 | B14: =SUM([2]Cuadro!AM107:AO107) -> 4403.246415 | C14: =SUM([2]Cuadro!AP107:AR107) -> 13225.90915 | D14: =SUM([2]Cuadro!AS107:AU107) -> 2624.292212 | E14: =-([2]Cuadro!AE107-[2]Cuadro!B107)-[2]Cuadro!AD107 -> 189.1810397 | F14: 2813.473252 | G14: =SUM([2]Cuadro!BN107:BP107) -> 26273.23349 | H14: 46715.86231 | I14: =Parametros!C8 -> 0
A15: 2024-06-01 | B15: =SUM([2]Cuadro!AM108:AO108) -> 4098.142218 | C15: =SUM([2]Cuadro!AP108:AR108) -> 12683.11772 | D15: =SUM([2]Cuadro!AS108:AU108) -> 2382.734021 | E15: =-([2]Cuadro!AE108-[2]Cuadro!B108)-[2]Cuadro!AD108 -> 264.196541 | F15: 2646.930562 | G15: =SUM([2]Cuadro!BN108:BP108) -> 19246.65465 | H15: 38674.84516 | I15: =Parametros!C9 -> 0
A16: 2024-07-01 | B16: =SUM([2]Cuadro!AM109:AO109) -> 4113.812442 | C16: =SUM([2]Cuadro!AP109:AR109) -> 12416.02265 | D16: =SUM([2]Cuadro!AS109:AU109) -> 2597.625388 | E16: =-([2]Cuadro!AE109-[2]Cuadro!B109)-[2]Cuadro!AD109 -> 264.8483798 | F16: 2862.473767 | G16: =SUM([2]Cuadro!BN109:BP109) -> 30102.24747 | H16: 49494.55633 | I16: =Parametros!C10 -> 1
A17: 2024-08-01 | B17: =SUM([2]Cuadro!AM110:AO110) -> 4180.431114 | C17: =SUM([2]Cuadro!AP110:AR110) -> 12674.58465 | D17: =SUM([2]Cuadro!AS110:AU110) -> 2196.947772 | E17: =-([2]Cuadro!AE110-[2]Cuadro!B110)-[2]Cuadro!AD110 -> 260.7845163 | F17: 2457.732288 | G17: =SUM([2]Cuadro!BN110:BP110) -> 22747.28448 | H17: 42060.03253 | I17: =Parametros!C11 -> 1
A18: 2024-09-01 | B18: =SUM([2]Cuadro!AM111:AO111) -> 4052.987739 | C18: =SUM([2]Cuadro!AP111:AR111) -> 12532.44993 | D18: =SUM([2]Cuadro!AS111:AU111) -> 2387.505981 | E18: =-([2]Cuadro!AE111-[2]Cuadro!B111)-[2]Cuadro!AD111 -> 282.4854364 | F18: 2669.991418 | G18: =SUM([2]Cuadro!BN111:BP111) -> 18430.21688 | H18: 37685.64597 | I18: =Parametros!C12 -> 1
A19: 2024-10-01 | B19: =SUM([2]Cuadro!AM112:AO112) -> 4086.102382 | C19: =SUM([2]Cuadro!AP112:AR112) -> 12338.22326 | D19: =SUM([2]Cuadro!AS112:AU112) -> 2265.79596 | E19: =-([2]Cuadro!AE112-[2]Cuadro!B112)-[2]Cuadro!AD112 -> 247.8715961 | F19: 2513.667556 | G19: =SUM([2]Cuadro!BN112:BP112) -> 25003.48475 | H19: 43941.47795 | I19: =Parametros!C13 -> 1
A20: 2024-11-01 | B20: =SUM([2]Cuadro!AM113:AO113) -> 3501.167853 | C20: =SUM([2]Cuadro!AP113:AR113) -> 11595.27765 | D20: =SUM([2]Cuadro!AS113:AU113) -> 2136.998898 | E20: =-([2]Cuadro!AE113-[2]Cuadro!B113)-[2]Cuadro!AD113 -> 48.20157458 | F20: 2185.200473 | G20: =SUM([2]Cuadro!BN113:BP113) -> 21424.64011 | H20: 38706.28608 | I20: =Parametros!C14 -> 1
A21: 2024-12-01 | B21: =SUM([2]Cuadro!AM114:AO114) -> 3926.351522 | C21: =SUM([2]Cuadro!AP114:AR114) -> 13339.8952 | D21: =SUM([2]Cuadro!AS114:AU114) -> 2600.700313 | E21: =-([2]Cuadro!AE114-[2]Cuadro!B114)-[2]Cuadro!AD114 -> 189.4326735 | F21: 2790.132986 | G21: =SUM([2]Cuadro!BN114:BP114) -> 20954.28664 | H21: 41010.66635 | I21: =Parametros!C15 -> 1
A22: 2025-01-01 | B22: =SUM([2]Cuadro!AM115:AO115) -> 3646.551807 | C22: =SUM([2]Cuadro!AP115:AR115) -> 12254.56183 | D22: =SUM([2]Cuadro!AS115:AU115) -> 2490.01904 | E22: =-([2]Cuadro!AE115-[2]Cuadro!B115)-[2]Cuadro!AD115 -> 197.6331947 | F22: 2687.652235 | G22: =SUM([2]Cuadro!BN115:BP115) -> 34558.57677 | H22: 53147.34264 | I22: =Parametros!C16 -> 1
A23: 2025-02-01 | B23: =SUM([2]Cuadro!AM116:AO116) -> 3688.635259 | C23: =SUM([2]Cuadro!AP116:AR116) -> 11423.07766 | D23: =SUM([2]Cuadro!AS116:AU116) -> 2281.426757 | E23: =-([2]Cuadro!AE116-[2]Cuadro!B116)-[2]Cuadro!AD116 -> 182.5900885 | F23: 2464.016846 | G23: =SUM([2]Cuadro!BN116:BP116) -> 11757.0391 | H23: 29332.76886 | I23: =Parametros!C17 -> 1
A24: 2025-03-01 | B24: =SUM([2]Cuadro!AM117:AO117) -> 3850.406938 | C24: =SUM([2]Cuadro!AP117:AR117) -> 12605.60857 | D24: =SUM([2]Cuadro!AS117:AU117) -> 2483.011065 | E24: =-([2]Cuadro!AE117-[2]Cuadro!B117)-[2]Cuadro!AD117 -> 190.8601822 | F24: 2673.871248 | G24: =SUM([2]Cuadro!BN117:BP117) -> 31206.45417 | H24: 50336.34092 | I24: =Parametros!C18 -> 1
A25: 2025-04-01 | B25: =SUM([2]Cuadro!AM118:AO118) -> 4143.265752 | C25: =SUM([2]Cuadro!AP118:AR118) -> 12983.76319 | D25: =SUM([2]Cuadro!AS118:AU118) -> 2452.932236 | E25: =-([2]Cuadro!AE118-[2]Cuadro!B118)-[2]Cuadro!AD118 -> 179.2289688 | F25: 2632.161205 | G25: =SUM([2]Cuadro!BN118:BP118) -> 16592.57907 | H25: 36351.76922 | I25: =Parametros!C19 -> 1
A26: 2025-05-01 | B26: =SUM([2]Cuadro!AM119:AO119) -> 4091.955882 | C26: =SUM([2]Cuadro!AP119:AR119) -> 13082.42998 | D26: =SUM([2]Cuadro!AS119:AU119) -> 2454.299022 | E26: =-([2]Cuadro!AE119-[2]Cuadro!B119)-[2]Cuadro!AD119 -> 148.1743831 | F26: 2602.473405 | G26: =SUM([2]Cuadro!BN119:BP119) -> 27105.27823 | H26: 46882.13751 | I26: =Parametros!C20 -> 1
A27: 2025-06-01 | B27: =SUM([2]Cuadro!AM120:AO120) -> 3710.929978 | C27: =SUM([2]Cuadro!AP120:AR120) -> 12565.94121 | D27: =SUM([2]Cuadro!AS120:AU120) -> 2304.063627 | E27: =-([2]Cuadro!AE120-[2]Cuadro!B120)-[2]Cuadro!AD120 -> 164.5203434 | F27: 2468.58397 | G27: =SUM([2]Cuadro!BN120:BP120) -> 19060.24185 | H27: 37805.69701 | I27: =Parametros!C21 -> 1
A28: 2025-07-01 | B28: =SUM([2]Cuadro!AM121:AO121) -> 3872.797963 | C28: =SUM([2]Cuadro!AP121:AR121) -> 13247.95073 | D28: =SUM([2]Cuadro!AS121:AU121) -> 2443.099185 | E28: =-([2]Cuadro!AE121-[2]Cuadro!B121)-[2]Cuadro!AD121 -> 165.4007624 | F28: 2608.499948 | G28: =SUM([2]Cuadro!BN121:BP121) -> 28505.74299 | H28: 48234.99164 | I28: =Parametros!C22 -> 0
A29: 2025-08-01 | B29: =SUM([2]Cuadro!AM122:AO122) -> 4057.405157 | C29: =SUM([2]Cuadro!AP122:AR122) -> 12925.81226 | D29: =SUM([2]Cuadro!AS122:AU122) -> 2087.993764 | E29: =-([2]Cuadro!AE122-[2]Cuadro!B122)-[2]Cuadro!AD122 -> 153.2336263 | F29: 2241.227391 | G29: =SUM([2]Cuadro!BN122:BP122) -> 17689.27199 | H29: 36913.7168 | I29: =Parametros!C23 -> 0
A30: 2025-09-01 | B30: =SUM([2]Cuadro!AM123:AO123) -> 3710.929978 | C30: =SUM([2]Cuadro!AP123:AR123) -> 12565.94121 | D30: =SUM([2]Cuadro!AS123:AU123) -> 2268.493479 | E30: =-([2]Cuadro!AE123-[2]Cuadro!B123)-[2]Cuadro!AD123 -> 159.6059294 | F30: 2428.099409 | G30: =SUM([2]Cuadro!BN123:BP123) -> 22675.9658 | H30: 41380.9364 | I30: =Parametros!C24 -> 0
A31: 2025-10-01 | B31: =SUM([2]Cuadro!AM124:AO124) -> 4091.955882 | C31: =SUM([2]Cuadro!AP124:AR124) -> 13082.42998 | D31: =SUM([2]Cuadro!AS124:AU124) -> 2454.299022 | E31: =-([2]Cuadro!AE124-[2]Cuadro!B124)-[2]Cuadro!AD124 -> 182.4105045 | F31: 2636.709527 | G31: =SUM([2]Cuadro!BN124:BP124) -> 18778.43758 | H31: 38589.53297 | I31: =Parametros!C25 -> 0
A32: 2025-11-01 | B32: =SUM([2]Cuadro!AM125:AO125) -> 0 | C32: =SUM([2]Cuadro!AP125:AR125) -> 0 | D32: =SUM([2]Cuadro!AS125:AU125) -> 0 | E32: =-([2]Cuadro!AE125-[2]Cuadro!B125)-[2]Cuadro!AD125 -> 0 | F32: 0 | G32: =SUM([2]Cuadro!BN125:BP125) -> 0 | H32: 0 | I32: =Parametros!C26 -> 0
A33: 2025-12-01 | B33: =SUM([2]Cuadro!AM126:AO126) -> 0 | C33: =SUM([2]Cuadro!AP126:AR126) -> 0 | D33: =SUM([2]Cuadro!AS126:AU126) -> 0 | E33: =-([2]Cuadro!AE126-[2]Cuadro!B126)-[2]Cuadro!AD126 -> 0 | F33: 0 | G33: =SUM([2]Cuadro!BN126:BP126) -> 0 | H33: 0 | I33: =Parametros!C27 -> 0
A34: 2026-01-01 | B34: =SUM([2]Cuadro!AM127:AO127) -> 0 | C34: =SUM([2]Cuadro!AP127:AR127) -> 0 | D34: =SUM([2]Cuadro!AS127:AU127) -> 0 | E34: =-([2]Cuadro!AE127-[2]Cuadro!B127)-[2]Cuadro!AD127 -> 0 | F34: 0 | G34: =SUM([2]Cuadro!BN127:BP127) -> 0 | H34: 0 | I34: =Parametros!C28 -> 0
A35: 2026-02-01 | B35: =SUM([2]Cuadro!AM128:AO128) -> 0 | C35: =SUM([2]Cuadro!AP128:AR128) -> 0 | D35: =SUM([2]Cuadro!AS128:AU128) -> 0 | E35: =-([2]Cuadro!AE128-[2]Cuadro!B128)-[2]Cuadro!AD128 -> 0 | F35: 0 | G35: =SUM([2]Cuadro!BN128:BP128) -> 0 | H35: 0 | I35: =Parametros!C29 -> 0
A36: 2026-03-01 | B36: =SUM([2]Cuadro!AM129:AO129) -> 0 | C36: =SUM([2]Cuadro!AP129:AR129) -> 0 | D36: =SUM([2]Cuadro!AS129:AU129) -> 0 | E36: =-([2]Cuadro!AE129-[2]Cuadro!B129)-[2]Cuadro!AD129 -> 0 | F36: 0 | G36: =SUM([2]Cuadro!BN129:BP129) -> 0 | H36: 0 | I36: =Parametros!C30 -> 0
A37: 2026-04-01
A38: 2026-05-01
A39: 2026-06-01
A40: 2026-07-01
A41: 2026-08-01
A42: 2026-09-01
A43: 2026-10-01
A44: 2026-11-01
A45: 2026-12-01

Sheet Info_AP
B1: AP
B2: MWh
B3: fuente: enviada a ASEP
A4: 2020 | B4: ='[3]Datos Operativos'!$G$46 -> 75094.309
A5: 2021 | B5: ='[3]Datos Operativos'!$H$46 -> 82122
A6: 2022
B11: AP | C11: AP | D11: Año base
B12: MWh | C12: MWh
B13: (fuente: informes operativos) | C13: Oficial a ASEP ajustada
A14: 2024-01-01 | B14: =SUM([2]Cuadro!E103:G103) -> 6747.643 | C14: =B14 -> 6747.643 | D14: =Parametros!C4 -> 0
A15: 2024-02-01 | B15: =SUM([2]Cuadro!E104:G104) -> 6716.84 | C15: =B15 -> 6716.84 | D15: =Parametros!C5 -> 0
A16: 2024-03-01 | B16: =SUM([2]Cuadro!E105:G105) -> 6724.185 | C16: 6724.185 | D16: =Parametros!C6 -> 0
A17: 2024-04-01 | B17: =SUM([2]Cuadro!E106:G106) -> 6713.249 | C17: 6713.249 | D17: =Parametros!C7 -> 0
A18: 2024-05-01 | B18: =SUM([2]Cuadro!E107:G107) -> 6702.586 | C18: 6702.586 | D18: =Parametros!C8 -> 0
A19: 2024-06-01 | B19: =SUM([2]Cuadro!E108:G108) -> 6689.232 | C19: 6689.232 | D19: =Parametros!C9 -> 0
A20: 2024-07-01 | B20: =SUM([2]Cuadro!E109:G109) -> 6675.785 | C20: 6675.785 | D20: =Parametros!C10 -> 1
A21: 2024-08-01 | B21: =SUM([2]Cuadro!E110:G110) -> 6690.186 | C21: 6690.186 | D21: =Parametros!C11 -> 1
A22: 2024-09-01 | B22: =SUM([2]Cuadro!E111:G111) -> 6714.95 | C22: 6714.95 | D22: =Parametros!C12 -> 1
A23: 2024-10-01 | B23: =SUM([2]Cuadro!E112:G112) -> 6663.542 | C23: 6663.542 | D23: =Parametros!C13 -> 1
A24: 2024-11-01 | B24: =SUM([2]Cuadro!E113:G113) -> 6680.606 | C24: 6680.606 | D24: =Parametros!C14 -> 1
A25: 2024-12-01 | B25: =SUM([2]Cuadro!E114:G114) -> 6692.707 | C25: 6692.707 | D25: =Parametros!C15 -> 1
A26: 2025-01-01 | B26: =SUM([2]Cuadro!E115:G115) -> 6693.541 | C26: 6693.541 | D26: =Parametros!C16 -> 1
A27: 2025-02-01 | B27: =SUM([2]Cuadro!E116:G116) -> 6660.739 | C27: 6660.739 | D27: =Parametros!C17 -> 1
A28: 2025-03-01 | B28: =SUM([2]Cuadro!E117:G117) -> 6662.419 | C28: 6662.419 | D28: =Parametros!C18 -> 1
A29: 2025-04-01 | B29: =SUM([2]Cuadro!E118:G118) -> 6629.164 | C29: 6629.164 | D29: =Parametros!C19 -> 1
A30: 2025-05-01 | B30: =SUM([2]Cuadro!E119:G119) -> 6579.829 | C30: 6579.829 | D30: =Parametros!C20 -> 1
A31: 2025-06-01 | B31: =SUM([2]Cuadro!E120:G120) -> 6623.791 | C31: 6623.791 | D31: =Parametros!C21 -> 1
A32: 2025-07-01 | B32: =SUM([2]Cuadro!E121:G121) -> 6623.791 | C32: 6623.791 | D32: =Parametros!C22 -> 0
A33: 2025-08-01 | B33: =SUM([2]Cuadro!E122:G122) -> 6477.305 | C33: 6477.305 | D33: =Parametros!C23 -> 0
A34: 2025-09-01 | B34: =SUM([2]Cuadro!E123:G123) -> 6474.652 | C34: 6474.652 | D34: =Parametros!C24 -> 0
A35: 2025-10-01 | B35: =SUM([2]Cuadro!E124:G124) -> 6457.772 | C35: 6457.772 | D35: =Parametros!C25 -> 0
A36: 2025-11-01 | B36: =SUM([2]Cuadro!E125:G125) -> 0 | C36: 0 | D36: =Parametros!C26 -> 0
A37: 2025-12-01 | B37: =SUM([2]Cuadro!E126:G126) -> 0 | C37: 0 | D37: =Parametros!C27 -> 0
A38: 2026-01-01 | B38: =SUM([2]Cuadro!E127:G127) -> 0 | D38: =Parametros!C28 -> 0
A39: 2026-02-01 | B39: =SUM([2]Cuadro!E128:G128) -> 0 | D39: =Parametros!C29 -> 0
A40: 2026-03-01 | B40: =SUM([2]Cuadro!E129:G129) -> 0 | D40: =Parametros!C30 -> 0
A41: 2026-04-01 | B41: =SUM([2]Cuadro!E130:G130) -> 0 | D41: =Parametros!C31 -> 0
A42: 2026-05-01 | B42: =SUM([2]Cuadro!E131:G131) -> 0 | D42: =Parametros!C32 -> 0
A43: 2026-06-01 | B43: =SUM([2]Cuadro!E132:G132) -> 0 | D43: =Parametros!C33 -> 0
A44: 2026-07-01 | B44: =SUM([2]Cuadro!E133:G133) -> 0 | D44: =Parametros!C34 -> 0
A45: 2026-08-01 | B45: =SUM([2]Cuadro!E134:G134) -> 0 | D45: =Parametros!C35 -> 0
A46: 2026-09-01 | B46: =SUM([2]Cuadro!E135:G135) -> 0 | D46: =Parametros!C36 -> 0
A47: 2026-10-01 | B47: =SUM([2]Cuadro!E136:G136) -> 0 | D47: =Parametros!C37 -> 0
A48: 2026-11-01 | B48: =SUM([2]Cuadro!E137:G137) -> 0 | D48: =Parametros!C38 -> 0
A49: 2026-12-01 | B49: =SUM([2]Cuadro!E138:G138) -> 0 | D49: =Parametros!C39 -> 0

Sheet Datos
C1: Empresa: | D1: =[4]DATOS!$B$3 -> ENSA
C2: Período: | D2: =[4]DATOS!B4 -> Jul 2024 - Jun 2025
D4: =D2 -> Jul 2024 - Jun 2025
C5: Cantidad semanas al año: | D5: =365/7 -> 52.14285714
C6: Horas semanales en punta: | D6: =COUNTIF('[5]Balance de Potencia'!$D$7:$D$678,"P")/4 -> 40
C7: Horas semanales fuera de punta: | D7: =24*7-D6 -> 128
C9: Energía Inyectada (MWh)
C10: AT | D10: =[5]INPUTS!$E$18/1000 -> 4976220.558
C11: % ingresado en Horas Punta | D11: =SUMIFS([6]c_semana!$C$2:$C$673,'[5]Balance de Potencia'!$D$7:$D$678,"P")/SUM([6]c_semana!$C$2:$C$673) -> 0.2758950843
C12: % ingresado en Horas Fuera Punta | D12: =1-D11 -> 0.7241049157
C14: Potencias Máximas (MW)
C15: Punta | D15: =MAX(IF('[5]Balance de Potencia'!$D$7:$D$678="P",[6]c_semana!$C$2:$C$673)) -> 686.1918719
C16: Fuera de Punta | D16: =MAX(IF('[5]Balance de Potencia'!$D$7:$D$678<>"P",[6]c_semana!$C$2:$C$673)) -> 628.8355048
C18: Pérdidas de Energía (%) Composición porcentual
C19: Pérdida NT BT (%) | D19: =Balance!F7/SUM(Balance!$F$7,Balance!$F$8,Balance!$F$11,Balance!$F$14) -> 0.5370459451
C20: Pérdida T BT (%) | D20: =Balance!F8/SUM(Balance!$F$7,Balance!$F$8,Balance!$F$11,Balance!$F$14) -> 0.09549706198
C21: Pérdida MT (%) | D21: =Balance!F11/SUM(Balance!$F$7,Balance!$F$8,Balance!$F$11,Balance!$F$14) -> 0.3044434778
C22: Pérdida AT (%) | D22: =Balance!F14/SUM(Balance!$F$7,Balance!$F$8,Balance!$F$11,Balance!$F$14) -> 0.06301351518
C24: Tipos de medición | D24: Energia
D25: Pot_Max
D26: Pot_Max_P
D27: Pot_Max_FP
B29: Nivel tensión | C29: Energía Facturada (MWh) | D29: =D4 -> Jul 2024 - Jun 2025
A30: =$D$24 -> Energia | B30: =IF(C30="","","BT") -> BT | C30: =TRANSPOSE('[5]Balance de Potencia'!$H$5:$AB$6) -> BTS_R | D30: =[4]DATOS!$P$5/1000 -> 1406874.729
A31: =$D$24 -> Energia | B31: BT | C31: BTS_O | D31: =[4]DATOS!$P$15/1000 -> 381141.2222
A32: Energia | D32: =[4]DATOS!$P$25/1000 -> 0
A33: Energia | B33: BT | C33: BTS_P1 | D33: =[4]DATOS!$P$35/1000 -> 89226.94777
A34: Energia | B34: BT | C34: BTS_P2 | D34: =[4]DATOS!$P$45/1000 -> 47887.33723
A35: Energia | B35: BT | C35: BTD | D35: =[4]DATOS!$P$55/1000 -> 755497.7909
A36: Energia | B36: BT | C36: BTH | D36: =[4]DATOS!$P$65/1000 -> 37461.64656
A37: Energia | B37: BT | C37: BTS_A | D37: =[4]DATOS!$P$75/1000 -> 21133.551
A38: Energia | B38: BT | C38: BTD_A | D38: =[4]DATOS!$P$85/1000 -> 37819.45471
A39: Energia
A40: Energia
A41: Energia
A42: Energia
A43: Energia
A44: Energia
A45: Energia
A46: Energia
A47: Energia
A48: Energia
A49: Energia
A50: Energia | B50: BT | C50: AP | D50: =SUMPRODUCT(Info_AP!C14:C49,Info_AP!D14:D49) -> 79967.259
A51: Energia | B51: =IF(C51="","","MT") ->  | C51: =TRANSPOSE('[5]Balance de Potencia'!$AF$5:$AY$6) -> 
A52: Energia | B52: =IF(C52="","","MT") -> 
A53: Energia
A54: Energia
A55: Energia
A56: Energia
A57: Energia
A58: Energia
A59: Energia
A60: Energia | B60: MT | C60: MTD | D60: =[4]DATOS!$P$95/1000 -> 809543.2409
A61: Energia | B61: MT | C61: MTH | D61: =[4]DATOS!$P$105/1000 -> 166401.291
A62: Energia
A63: Energia
A64: Energia
A65: Energia
A66: Energia
A67: Energia
A68: Energia
A69: Energia
A70: Energia
A71: Energia | B71: =IF(C71="","","AT") ->  | C71: =TRANSPOSE('[5]Balance de Potencia'!$BB$5:$BU$6) -> 
A72: Energia | B72: =IF(C72="","","AT") -> 
A73: Energia
A74: Energia
A75: Energia
A76: Energia
A77: Energia
A78: Energia
A79: Energia
A80: Energia
A81: Energia
A82: Energia
A83: Energia | B83: AT | C83: ATD | D83: =[4]DATOS!$P$125/1000 -> 64159.959
A84: Energia | B84: AT | C84: ATH | D84: =[4]DATOS!$P$135/1000 -> 319222.8786
A85: Energia | B85: AT | C85: EDEMET | D85: =[4]DATOS!$P$145/1000 -> 267799.016
A86: Energia
A87: Energia
A88: Energia
A89: Energia
A90: Energia
C91: Total | D91: =SUM(D30:D90) -> 4484136.324
C94: Suma de potencias máximas leídas (promedio mensual) | D94: =D4 -> Jul 2024 - Jun 2025
A95: =$D$25 -> Pot_Max | B95: =B30 -> BT | C95: =C30 -> BTS_R
A96: =$D$25 -> Pot_Max | B96: =B31 -> BT | C96: BTS_O
A97: Pot_Max | B97: =B32 ->  | D97: =AVERAGE('[7]Data Real_comerc'!$AQ$129:$BB$129)+AVERAGE('[7]Data Real_comerc'!$AQ$150:$BB$150) -> 205.4936667
A98: Pot_Max | B98: =B33 -> BT | C98: BTS_P1
A99: Pot_Max | B99: =B34 -> BT | C99: BTS_P2
A100: Pot_Max | B100: =B35 -> BT | C100: BTD
A101: Pot_Max | B101: =B36 -> BT | C101: BTH
A102: Pot_Max | B102: =B37 -> BT | C102: BTS_A
A103: Pot_Max | B103: =B38 -> BT | C103: BTD_A
A104: Pot_Max | B104: =B39 -> 
A105: Pot_Max | B105: =B40 -> 
A106: Pot_Max | B106: =B41 -> 
A107: Pot_Max | B107: =B42 -> 
A108: Pot_Max | B108: =B43 -> 
A109: Pot_Max | B109: =B44 -> 
A110: Pot_Max | B110: =B45 -> 
A111: Pot_Max | B111: =B46 -> 
A112: Pot_Max | B112: =B47 -> 
A113: Pot_Max | B113: =B48 -> 
A114: Pot_Max | B114: =B49 -> 
A115: Pot_Max | B115: =B50 -> BT | C115: AP
A116: Pot_Max | B116: =B51 -> 
A117: Pot_Max | B117: =B52 -> 
A118: Pot_Max | B118: =B53 -> 
A119: Pot_Max | B119: =B54 -> 
A120: Pot_Max | B120: =B55 -> 
A121: Pot_Max | B121: =B56 -> 
A122: Pot_Max | B122: =B57 ->  | D122: =AVERAGE('[7]Data Real_comerc'!$AQ$133:$BB$133)+AVERAGE('[7]Data Real_comerc'!$AQ$156:$BB$156) -> 150.1656667
A123: Pot_Max | B123: =B58 -> 
A124: Pot_Max | B124: =B59 -> 
A125: Pot_Max | B125: =B60 -> MT | C125: MTD
A126: Pot_Max | B126: =B61 -> MT | C126: MTH
A127: Pot_Max | B127: =B62 -> 
A128: Pot_Max | B128: =B63 -> 
A129: Pot_Max | B129: =B64 -> 
A130: Pot_Max | B130: =B65 -> 
A131: Pot_Max | B131: =B66 -> 
A132: Pot_Max | B132: =B67 -> 
A133: Pot_Max | B133: =B68 -> 
A134: Pot_Max | B134: =B69 -> 
A135: Pot_Max | B135: =B70 -> 
A136: Pot_Max | B136: =B71 -> 
A137: Pot_Max | B137: =B72 -> 
A138: Pot_Max | B138: =B73 -> 
A139: Pot_Max | B139: =B74 -> 
A140: Pot_Max | B140: =B75 -> 
A141: Pot_Max | B141: =B76 -> 
A142: Pot_Max | B142: =B77 -> 
A143: Pot_Max | B143: =B78 -> 
A144: Pot_Max | B144: =B79 -> 
A145: Pot_Max | B145: =B80 -> 
A146: Pot_Max | B146: =B81 ->  | D146: =AVERAGE('[7]Data Real_comerc'!$AQ$136:$BB$136)+AVERAGE('[7]Data Real_comerc'!$AQ$162:$BB$162) -> 9.04975
A147: Pot_Max | B147: =B82 -> 
A148: Pot_Max | B148: =B83 -> AT | C148: ATD
A149: Pot_Max | B149: =B84 -> AT | C149: ATH
A150: Pot_Max | B150: =B85 -> AT | C150: EDEMET | D150: =AVERAGE('[7]Data Real_comerc'!$AQ$168:$BB$168) -> 62.01941667
A151: Pot_Max | B151: =B86 -> 
A152: Pot_Max | B152: =B87 -> 
A153: Pot_Max | B153: =B88 -> 
A154: Pot_Max | B154: =B89 -> 
A155: Pot_Max | B155: =B90 -> 
C158: Suma de potencias en horas de punta máximas leídas (promedio mensual) | D158: =D4 -> Jul 2024 - Jun 2025
A159: =$D$26 -> Pot_Max_P | B159: =B30 -> BT | C159: =C30 -> BTS_R
A160: =$D$26 -> Pot_Max_P | B160: =B31 -> BT | C160: BTS_O
A161: Pot_Max_P | B161: =B32 -> 
A162: Pot_Max_P | B162: =B33 -> BT | C162: BTS_P1 | D162: =AVERAGE('[7]Data Real_comerc'!$AQ$138:$BB$138)+AVERAGE('[7]Data Real_comerc'!$AQ$152:$BB$152) -> 2.14625
A163: Pot_Max_P | B163: =B34 -> BT | C163: BTS_P2
A164: Pot_Max_P | B164: =B35 -> BT | C164: BTD
A165: Pot_Max_P | B165: =B36 -> BT | C165: BTH
A166: Pot_Max_P | B166: =B37 -> BT | C166: BTS_A
A167: Pot_Max_P | B167: =B38 -> BT | C167: BTD_A
A168: Pot_Max_P | B168: =B39 -> 
A169: Pot_Max_P | B169: =B40 -> 
A170: Pot_Max_P | B170: =B41 -> 
A171: Pot_Max_P | B171: =B42 -> 
A172: Pot_Max_P | B172: =B43 -> 
A173: Pot_Max_P | B173: =B44 -> 
A174: Pot_Max_P | B174: =B45 -> 
A175: Pot_Max_P | B175: =B46 -> 
A176: Pot_Max_P | B176: =B47 -> 
A177: Pot_Max_P | B177: =B48 -> 
A178: Pot_Max_P | B178: =B49 -> 
A179: Pot_Max_P | B179: =B50 -> BT | C179: AP
A180: Pot_Max_P | B180: =B51 -> 
A181: Pot_Max_P | B181: =B52 -> 
A182: Pot_Max_P | B182: =B53 -> 
A183: Pot_Max_P | B183: =B54 -> 
A184: Pot_Max_P | B184: =B55 -> 
A185: Pot_Max_P | B185: =B56 -> 
A186: Pot_Max_P | B186: =B57 -> 
A187: Pot_Max_P | B187: =B58 ->  | D187: =AVERAGE('[7]Data Real_comerc'!$AQ$142:$BB$142)+AVERAGE('[7]Data Real_comerc'!$AQ$158:$BB$158) -> 29.83341667
A188: Pot_Max_P | B188: =B59 -> 
A189: Pot_Max_P | B189: =B60 -> MT | C189: MTD
A190: Pot_Max_P | B190: =B61 -> MT | C190: MTH
A191: Pot_Max_P | B191: =B62 -> 
A192: Pot_Max_P | B192: =B63 -> 
A193: Pot_Max_P | B193: =B64 -> 
A194: Pot_Max_P | B194: =B65 -> 
A195: Pot_Max_P | B195: =B66 -> 
A196: Pot_Max_P | B196: =B67 -> 
A197: Pot_Max_P | B197: =B68 -> 
A198: Pot_Max_P | B198: =B69 -> 
A199: Pot_Max_P | B199: =B70 -> 
A200: Pot_Max_P | B200: =B71 -> 
A201: Pot_Max_P | B201: =B72 -> 
A202: Pot_Max_P | B202: =B73 -> 
A203: Pot_Max_P | B203: =B74 -> 
A204: Pot_Max_P | B204: =B75 -> 
A205: Pot_Max_P | B205: =B76 -> 
A206: Pot_Max_P | B206: =B77 -> 
A207: Pot_Max_P | B207: =B78 -> 
A208: Pot_Max_P | B208: =B79 -> 
A209: Pot_Max_P | B209: =B80 -> 
A210: Pot_Max_P | B210: =B81 -> 
... 170 more rows

Sheet Balance
E3: Pérdidas Totales (%) | F3: =(Datos!D10-Datos!D91)/Datos!D10 -> 0.09888714316
F5: =Datos!D4 -> Jul 2024 - Jun 2025
E6: Ventas BT | F6: =SUM(Datos!D30:D50) -> 2857009.938 | H6: =Datos!D30 -> 1406874.729
E7: Pérdidas NT BT | F7: =F16-SUM(F6,F8,F10,F11,F13,F14) -> 264271.8429
E8: Pérdidas T BT | F8: =SUMPRODUCT(Info_Perdidas!B$10:B$36,Info_Perdidas!$I$10:$I$36) -> 46992.59867
E9: Energía Ingresada BT | F9: =SUM(F6:F8) -> 3168274.38
E10: Ventas MT | F10: =SUM(Datos!D51:D70) -> 975944.5319
E11: Pérdidas MT | F11: =SUMPRODUCT(Info_Perdidas!C$10:C$36,Info_Perdidas!$I$10:$I$36) -> 149811.8358
E12: Energía Ingresada MT | F12: =SUM(F9:F11) -> 4294030.747
E13: Ventas AT | F13: =SUM(Datos!D71:D90) -> 651181.8536
E14: Pérdidas AT | F14: =SUMPRODUCT(Info_Perdidas!F$10:F$36,Info_Perdidas!$I$10:$I$36) -> 31007.9574
E15: Energía Ingresada AT | F15: =SUM(F12:F14) -> 4976220.558
E16: Energía Ingresada | F16: =Datos!D10 -> 4976220.558
E17: para Balance de potencia campaña | F17: =F7/F9 -> 0.08341191805
D18: Pérdidas de Energía (respecto del nivel de tensión correspondiente) | E18: BT NT | F18: =F7/(H6+F7) -> 0.1581380397 | G18: =F7/F9 -> 0.08341191805
E19: BT T | F19: =F8/F9 -> 0.01483223769
E20: MT | F20: =F11/F12 -> 0.03488839382
E21: AT | F21: =F14/F15 -> 0.006231226497
C22: Factores de carga | D22: PUNTA | E22: BT | F22: =(H6+F7)/(8760*H116) -> 1.064305212 | G22: =F9/(8760*F116) -> 0.8292211838
E23: MT | F23: =F12/(8760*F165) -> 0.8150980703
E24: AT | F24: =F15/(8760*F236) -> 0.827846745
D25: PUNTA | E25: BT | F25: =(F9*Datos!$D$11)/(8760*(Datos!$D$6/(Datos!$D$6+Datos!$D$7))*F116) -> 0.9608678032
E26: MT | F26: =(F12*Datos!$D$11)/(8760*(Datos!$D$6/(Datos!$D$6+Datos!$D$7))*F165) -> 0.9445025134
E27: AT | F27: =(F15*Datos!$D$11)/(8760*(Datos!$D$6/(Datos!$D$6+Datos!$D$7))*F236) -> 0.9592751594
D28: FUERA DE PUNTA | E28: BT | F28: =(F9*Datos!$D$12)/(8760*(Datos!$D$7/(Datos!$D$6+Datos!$D$7))*F271) -> 0.8677264912
E29: MT | F29: =(F12*Datos!$D$12)/(8760*(Datos!$D$7/(Datos!$D$6+Datos!$D$7))*F320) -> 0.8629173744
E30: AT | F30: =(F15*Datos!$D$12)/(8760*(Datos!$D$7/(Datos!$D$6+Datos!$D$7))*F391) -> 0.8585374978
C31: Factores de carga de pérdidas | E31: BT | F31: =0.7*F22^2+0.3*F22 -> 1.112213473 | G31: =0.7*F22^2+0.3*F22 -> 1.112213473
E32: MT | F32: =0.7*F23^2+0.3*F23 -> 0.7095988261
E33: AT | F33: 0.7280851867
D34: PUNTA | E34: BT | F34: 0.9345471956
E35: MT | F35: 0.9078102525
E36: AT | F36: 0.9319287298
D37: FUERA DE PUNTA | E37: BT | F37: 0.7873824319
E38: MT | F38: 0.7801136889
E39: AT | F39: 0.773521894
C40: Pérdida Potencia | E40: BT NT | F40: =F18*F22/F31 -> 0.1513262912 | G40: =F18*F22/F31 -> 0.1513262912
E41: BT T | F41: =F19*F22/F31 -> 0.01419334351
E42: MT | F42: =F20*F23/F32 -> 0.04007540801
E43: AT | F43: =F21*F24/F33 -> 0.007085023383
D44: PUNTA | E44: BT NT | F44: =F40 -> 0.1513262912
E45: BT T | F45: =F41 -> 0.01419334351
E46: MT | F46: =F42 -> 0.04007540801
E47: AT | F47: =F43 -> 0.007085023383
D48: FUERA DE PUNTA | E48: BT NT | F48: =F40 -> 0.1513262912
E49: BT T | F49: =F41 -> 0.01419334351
E50: MT | F50: =F42 -> 0.04007540801
E51: AT | F51: =F43 -> 0.007085023383
C52: Pérdida Potencia | D52: PUNTA | E52: BT NT | F52: 0.1513262908
E53: BT T | F53: 0.01419334348
E54: MT | F54: 0.040075408
E55: AT | F55: 0.007085023383
D56: FUERA DE PUNTA | E56: BT NT | F56: 0.1513262912
E57: BT T | F57: 0.01419334351
E58: MT | F58: 0.04007540801
E59: AT | F59: 0.007085023383
C60: Cierre | D60: PUNTA | E60: BT NT | F60: =F52-F40 -> -3.837960505e-10
E61: BT T | F61: =F53-F41 -> -3.599737348e-11
E62: MT | F62: =F54-F42 -> -6.447148371e-12
E63: AT | F63: =F55-F43 -> 0
D64: FUERA DE PUNTA | E64: BT NT | F64: =F56-F40 -> 0
E65: BT T | F65: =F57-F41 -> 0
E66: MT | F66: =F58-F42 -> 0
E67: AT | F67: =F59-F43 -> 0
C68: Factores pérdidas Punta | D68: PUNTA | E68: BT NT | F68: =1/(1-F52) -> 1.178309154
E69: BT T | F69: 1.014397695
E70: MT | F70: 1.041748496
E71: AT | F71: 1.007135579
D72: FUERA DE PUNTA | E72: BT NT | F72: 1.178309154
E73: BT T | F73: 1.014397695
E74: MT | F74: 1.041748496
E75: AT | F75: 1.007135579
C76: Factores pérdidas Punta Acumulados | D76: PUNTA | E76: BT NT | F76: =PRODUCT(F$68:F68) -> 1.178309154
E77: BT T | F77: =PRODUCT(F$68:F69) -> 1.195274089
E78: MT | F78: =PRODUCT(F$68:F70) -> 1.245174985
E79: AT | F79: =PRODUCT(F$68:F71) -> 1.25406003
D80: FUERA DE PUNTA | E80: BT NT | F80: =PRODUCT(F$72:F72) -> 1.178309154
E81: BT T | F81: =PRODUCT(F$72:F73) -> 1.19527409
E82: MT | F82: =PRODUCT(F$72:F74) -> 1.245174986
E83: AT | F83: =PRODUCT(F$72:F75) -> 1.25406003
E86: FaP | F86: 0.953500452
E87: FaFP | F87: 0.965336436
A89: BALANCE DE POTENCIA HORAS PUNTA
F90: =Datos!D4 -> Jul 2024 - Jun 2025
C91: Coeficientes de responsabilidad (Tipo de medición) | F91: Potencia coincidente con máxima BT
A92: Variable Facturación | C92: Energía | D92: Potencia máxima | E92: Potencia por franja horaria
A93: =Datos!D353 -> Energia | B93: =Datos!C30 -> BTS_R | C93: =1/(Datos!$G288*8760)*Datos!$X288*$F$86 -> 0.0001081258581 | D93: =Datos!$H288*Datos!$X288*$F$86 -> 0.2613660192 | E93: =Datos!$I288*Datos!$N288*$F$86 -> 0.3684054858 | F93: =IFERROR(SUMIFS(Datos!D:D,Datos!$A:$A,$A93,Datos!$C:$C,$B93)*IF($A93=Datos!$D$24,$C93,IF($A93=Datos!$D$25,$D93,$E93)),"-") -> 152.1195373
A94: =Datos!D354 -> Energia | B94: =Datos!C31 -> BTS_O | C94: =1/(Datos!$G289*8760)*Datos!$X289*$F$86 -> 0.0001821161355 | D94: =Datos!$H289*Datos!$X289*$F$86 -> 0.5439511975 | E94: =Datos!$I289*Datos!$N289*$F$86 -> 0.6128278842 | F94: =IFERROR(SUMIFS(Datos!D:D,Datos!$A:$A,$A94,Datos!$C:$C,$B94)*IF($A94=Datos!$D$24,$C94,IF($A94=Datos!$D$25,$D94,$E94)),"-") -> 69.41196648
A95: =Datos!D355 -> Energia | B95: =Datos!C32 ->  | C95: =1/(Datos!$G290*8760)*Datos!$X290*$F$86 ->  | D95: =Datos!$H290*Datos!$X290*$F$86 ->  | E95: =Datos!$I290*Datos!$N290*$F$86 ->  | F95: =IFERROR(SUMIFS(Datos!D:D,Datos!$A:$A,$A95,Datos!$C:$C,$B95)*IF($A95=Datos!$D$24,$C95,IF($A95=Datos!$D$25,$D95,$E95)),"-") -> -
A96: =Datos!D356 -> Energia | B96: =Datos!C33 -> BTS_P1 | C96: =1/(Datos!$G291*8760)*Datos!$X291*$F$86 -> 9.941407545e-05 | D96: =Datos!$H291*Datos!$X291*$F$86 -> 0.221953802 | E96: =Datos!$I291*Datos!$N291*$F$86 -> 0.2856625468 | F96: =IFERROR(SUMIFS(Datos!D:D,Datos!$A:$A,$A96,Datos!$C:$C,$B96)*IF($A96=Datos!$D$24,$C96,IF($A96=Datos!$D$25,$D96,$E96)),"-") -> 8.870414518
A97: =Datos!D357 -> Energia | B97: =Datos!C34 -> BTS_P2 | C97: =1/(Datos!$G292*8760)*Datos!$X292*$F$86 -> 0.0001001863084 | D97: =Datos!$H292*Datos!$X292*$F$86 -> 0.2646960204 | E97: =Datos!$I292*Datos!$N292*$F$86 -> 0.3607310323 | F97: =IFERROR(SUMIFS(Datos!D:D,Datos!$A:$A,$A97,Datos!$C:$C,$B97)*IF($A97=Datos!$D$24,$C97,IF($A97=Datos!$D$25,$D97,$E97)),"-") -> 4.797655536
A98: =Datos!D358 -> Energia | B98: =Datos!C35 -> BTD | C98: =1/(Datos!$G293*8760)*Datos!$X293*$F$86 -> 0.0002089144103 | D98: =Datos!$H293*Datos!$X293*$F$86 -> 0.7078432259 | E98: =Datos!$I293*Datos!$N293*$F$86 -> 0.7375486063 | F98: =IFERROR(SUMIFS(Datos!D:D,Datos!$A:$A,$A98,Datos!$C:$C,$B98)*IF($A98=Datos!$D$24,$C98,IF($A98=Datos!$D$25,$D98,$E98)),"-") -> 157.8343755
A99: =Datos!D359 -> Energia | B99: =Datos!C36 -> BTH | C99: =1/(Datos!$G294*8760)*Datos!$X294*$F$86 -> 0.0001164806854 | D99: =Datos!$H294*Datos!$X294*$F$86 -> 0.72888058 | E99: =Datos!$I294*Datos!$N294*$F$86 -> 0.8110536879 | F99: =IFERROR(SUMIFS(Datos!D:D,Datos!$A:$A,$A99,Datos!$C:$C,$B99)*IF($A99=Datos!$D$24,$C99,IF($A99=Datos!$D$25,$D99,$E99)),"-") -> 4.363558267
A100: =Datos!D360 -> Energia | B100: =Datos!C37 -> BTS_A | C100: =1/(Datos!$G295*8760)*Datos!$X295*$F$86 -> 3.011161641e-05 | D100: =Datos!$H295*Datos!$X295*$F$86 -> 0.08636242238 | E100: =Datos!$I295*Datos!$N295*$F$86 -> 0.1657973059 | F100: =IFERROR(SUMIFS(Datos!D:D,Datos!$A:$A,$A100,Datos!$C:$C,$B100)*IF($A100=Datos!$D$24,$C100,IF($A100=Datos!$D$25,$D100,$E100)),"-") -> 0.6363653812
A101: =Datos!D361 -> Energia | B101: =Datos!C38 -> BTD_A | C101: =1/(Datos!$G296*8760)*Datos!$X296*$F$86 -> 0.0001272806491 | D101: =Datos!$H296*Datos!$X296*$F$86 -> 0.3254319108 | E101: =Datos!$I296*Datos!$N296*$F$86 -> 0.3397525431 | F101: =IFERROR(SUMIFS(Datos!D:D,Datos!$A:$A,$A101,Datos!$C:$C,$B101)*IF($A101=Datos!$D$24,$C101,IF($A101=Datos!$D$25,$D101,$E101)),"-") -> 4.813684745
A102: =Datos!D362 -> 0 | B102: =Datos!C39 ->  | C102: =1/(Datos!$G297*8760)*Datos!$X297*$F$86 ->  | D102: =Datos!$H297*Datos!$X297*$F$86 ->  | E102: =Datos!$I297*Datos!$N297*$F$86 ->  | F102: =IFERROR(SUMIFS(Datos!D:D,Datos!$A:$A,$A102,Datos!$C:$C,$B102)*IF($A102=Datos!$D$24,$C102,IF($A102=Datos!$D$25,$D102,$E102)),"-") -> -
A103: =Datos!D363 -> 0 | B103: =Datos!C40 ->  | C103: =1/(Datos!$G298*8760)*Datos!$X298*$F$86 ->  | D103: =Datos!$H298*Datos!$X298*$F$86 ->  | E103: =Datos!$I298*Datos!$N298*$F$86 ->  | F103: =IFERROR(SUMIFS(Datos!D:D,Datos!$A:$A,$A103,Datos!$C:$C,$B103)*IF($A103=Datos!$D$24,$C103,IF($A103=Datos!$D$25,$D103,$E103)),"-") -> -
A104: =Datos!D364 -> 0 | B104: =Datos!C41 ->  | C104: =1/(Datos!$G299*8760)*Datos!$X299*$F$86 ->  | D104: =Datos!$H299*Datos!$X299*$F$86 ->  | E104: =Datos!$I299*Datos!$N299*$F$86 ->  | F104: =IFERROR(SUMIFS(Datos!D:D,Datos!$A:$A,$A104,Datos!$C:$C,$B104)*IF($A104=Datos!$D$24,$C104,IF($A104=Datos!$D$25,$D104,$E104)),"-") -> -
A105: =Datos!D365 -> 0 | B105: =Datos!C42 ->  | C105: =1/(Datos!$G300*8760)*Datos!$X300*$F$86 ->  | D105: =Datos!$H300*Datos!$X300*$F$86 ->  | E105: =Datos!$I300*Datos!$N300*$F$86 ->  | F105: =IFERROR(SUMIFS(Datos!D:D,Datos!$A:$A,$A105,Datos!$C:$C,$B105)*IF($A105=Datos!$D$24,$C105,IF($A105=Datos!$D$25,$D105,$E105)),"-") -> -
A106: =Datos!D366 -> 0 | B106: =Datos!C43 ->  | C106: =1/(Datos!$G301*8760)*Datos!$X301*$F$86 ->  | D106: =Datos!$H301*Datos!$X301*$F$86 ->  | E106: =Datos!$I301*Datos!$N301*$F$86 ->  | F106: =IFERROR(SUMIFS(Datos!D:D,Datos!$A:$A,$A106,Datos!$C:$C,$B106)*IF($A106=Datos!$D$24,$C106,IF($A106=Datos!$D$25,$D106,$E106)),"-") -> -
A107: =Datos!D367 -> 0 | B107: =Datos!C44 ->  | C107: =1/(Datos!$G302*8760)*Datos!$X302*$F$86 ->  | D107: =Datos!$H302*Datos!$X302*$F$86 ->  | E107: =Datos!$I302*Datos!$N302*$F$86 ->  | F107: =IFERROR(SUMIFS(Datos!D:D,Datos!$A:$A,$A107,Datos!$C:$C,$B107)*IF($A107=Datos!$D$24,$C107,IF($A107=Datos!$D$25,$D107,$E107)),"-") -> -
A108: =Datos!D368 -> 0 | B108: =Datos!C45 ->  | C108: =1/(Datos!$G303*8760)*Datos!$X303*$F$86 ->  | D108: =Datos!$H303*Datos!$X303*$F$86 ->  | E108: =Datos!$I303*Datos!$N303*$F$86 ->  | F108: =IFERROR(SUMIFS(Datos!D:D,Datos!$A:$A,$A108,Datos!$C:$C,$B108)*IF($A108=Datos!$D$24,$C108,IF($A108=Datos!$D$25,$D108,$E108)),"-") -> -
A109: =Datos!D369 -> 0 | B109: =Datos!C46 ->  | C109: =1/(Datos!$G304*8760)*Datos!$X304*$F$86 ->  | D109: =Datos!$H304*Datos!$X304*$F$86 ->  | E109: =Datos!$I304*Datos!$N304*$F$86 ->  | F109: =IFERROR(SUMIFS(Datos!D:D,Datos!$A:$A,$A109,Datos!$C:$C,$B109)*IF($A109=Datos!$D$24,$C109,IF($A109=Datos!$D$25,$D109,$E109)),"-") -> -
A110: =Datos!D370 -> 0 | B110: =Datos!C47 ->  | C110: =1/(Datos!$G305*8760)*Datos!$X305*$F$86 ->  | D110: =Datos!$H305*Datos!$X305*$F$86 ->  | E110: =Datos!$I305*Datos!$N305*$F$86 ->  | F110: =IFERROR(SUMIFS(Datos!D:D,Datos!$A:$A,$A110,Datos!$C:$C,$B110)*IF($A110=Datos!$D$24,$C110,IF($A110=Datos!$D$25,$D110,$E110)),"-") -> -
A111: =Datos!D371 -> 0 | B111: =Datos!C48 ->  | C111: =1/(Datos!$G306*8760)*Datos!$X306*$F$86 ->  | D111: =Datos!$H306*Datos!$X306*$F$86 ->  | E111: =Datos!$I306*Datos!$N306*$F$86 ->  | F111: =IFERROR(SUMIFS(Datos!D:D,Datos!$A:$A,$A111,Datos!$C:$C,$B111)*IF($A111=Datos!$D$24,$C111,IF($A111=Datos!$D$25,$D111,$E111)),"-") -> -
A112: =Datos!D372 -> 0 | B112: =Datos!C49 ->  | C112: =1/(Datos!$G307*8760)*Datos!$X307*$F$86 ->  | D112: =Datos!$H307*Datos!$X307*$F$86 ->  | E112: =Datos!$I307*Datos!$N307*$F$86 ->  | F112: =IFERROR(SUMIFS(Datos!D:D,Datos!$A:$A,$A112,Datos!$C:$C,$B112)*IF($A112=Datos!$D$24,$C112,IF($A112=Datos!$D$25,$D112,$E112)),"-") -> -
A113: =Datos!D373 -> Energia | B113: =Datos!C50 -> AP | C113: =1/(Datos!$G308*8760)*Datos!$X308*$F$86 -> 0 | D113: =Datos!$H308*Datos!$X308*$F$86 -> 0 | E113: =Datos!$I308*Datos!$N308*$F$86 -> 0 | F113: =IFERROR(SUMIFS(Datos!D:D,Datos!$A:$A,$A113,Datos!$C:$C,$B113)*IF($A113=Datos!$D$24,$C113,IF($A113=Datos!$D$25,$D113,$E113)),"-") -> 0
B114: Pérdida NT BT | F114: =SUM(F93)*(F68-1) -> 27.12430595 | G114: =SUM(F93:F113)*(F68-1) -> 71.83140708
B115: Pérdida T BT | F115: =SUM(F93:F114)*(F69-1) -> 6.190603711
B116: Potencia Máxima BT | F116: =SUM(F93:F115) -> 436.1624673 | H116: =F93+F114 -> 179.2438432
C118: Coeficientes de responsabilidad (Tipo de medición) | F118: Potencia coincidente con máxima MT
C119: Energía | D119: Potencia máxima | E119: Potencia por franja horaria
A120: =A93 -> Energia | B120: =Datos!C30 -> BTS_R | C120: =1/(Datos!$G288*8760)*Datos!$Y288*$F$86 -> 0.0001070153094 | D120: =Datos!$H288*Datos!$Y288*$F$86 -> 0.2586815578 | E120: =Datos!$I288*Datos!$O288*$F$86 -> 0.3646216339 | F120: =IFERROR(SUMIFS(Datos!D:D,Datos!$A:$A,$A120,Datos!$C:$C,$B120)*IF($A120=Datos!$D$24,$C120,IF($A120=Datos!$D$25,$D120,$E120)),"-") -> 150.5571344
A121: Energia | B121: =Datos!C31 -> BTS_O | C121: =1/(Datos!$G289*8760)*Datos!$Y289*$F$86 -> 0.0001860671954 | D121: =Datos!$H289*Datos!$Y289*$F$86 -> 0.5557523692 | E121: =Datos!$I289*Datos!$O289*$F$86 -> 0.6261233547 | F121: =IFERROR(SUMIFS(Datos!D:D,Datos!$A:$A,$A121,Datos!$C:$C,$B121)*IF($A121=Datos!$D$24,$C121,IF($A121=Datos!$D$25,$D121,$E121)),"-") -> 70.91787829
A122: Energia | B122: =Datos!C32 ->  | C122: =1/(Datos!$G290*8760)*Datos!$Y290*$F$86 ->  | D122: =Datos!$H290*Datos!$Y290*$F$86 ->  | E122: =Datos!$I290*Datos!$O290*$F$86 ->  | F122: =IFERROR(SUMIFS(Datos!D:D,Datos!$A:$A,$A122,Datos!$C:$C,$B122)*IF($A122=Datos!$D$24,$C122,IF($A122=Datos!$D$25,$D122,$E122)),"-") -> -
A123: Energia | B123: =Datos!C33 -> BTS_P1 | C123: =1/(Datos!$G291*8760)*Datos!$Y291*$F$86 -> 9.293368109e-05 | D123: =Datos!$H291*Datos!$Y291*$F$86 -> 0.2074855472 | E123: =Datos!$I291*Datos!$O291*$F$86 -> 0.2670413813 | F123: =IFERROR(SUMIFS(Datos!D:D,Datos!$A:$A,$A123,Datos!$C:$C,$B123)*IF($A123=Datos!$D$24,$C123,IF($A123=Datos!$D$25,$D123,$E123)),"-") -> 8.292188709
A124: Energia | B124: =Datos!C34 -> BTS_P2 | C124: =1/(Datos!$G292*8760)*Datos!$Y292*$F$86 -> 0.0001071954262 | D124: =Datos!$H292*Datos!$Y292*$F$86 -> 0.283214375 | E124: =Datos!$I292*Datos!$O292*$F$86 -> 0.3859680766 | F124: =IFERROR(SUMIFS(Datos!D:D,Datos!$A:$A,$A124,Datos!$C:$C,$B124)*IF($A124=Datos!$D$24,$C124,IF($A124=Datos!$D$25,$D124,$E124)),"-") -> 5.133303523
A125: Energia | B125: =Datos!C35 -> BTD | C125: =1/(Datos!$G293*8760)*Datos!$Y293*$F$86 -> 0.0002050235645 | D125: =Datos!$H293*Datos!$Y293*$F$86 -> 0.6946602728 | E125: =Datos!$I293*Datos!$O293*$F$86 -> 0.7238124168 | F125: =IFERROR(SUMIFS(Datos!D:D,Datos!$A:$A,$A125,Datos!$C:$C,$B125)*IF($A125=Datos!$D$24,$C125,IF($A125=Datos!$D$25,$D125,$E125)),"-") -> 154.89485
A126: Energia | B126: =Datos!C36 -> BTH | C126: =1/(Datos!$G294*8760)*Datos!$Y294*$F$86 -> 0.0001136365572 | D126: =Datos!$H294*Datos!$Y294*$F$86 -> 0.7110833822 | E126: =Datos!$I294*Datos!$O294*$F$86 -> 0.7912500558 | F126: =IFERROR(SUMIFS(Datos!D:D,Datos!$A:$A,$A126,Datos!$C:$C,$B126)*IF($A126=Datos!$D$24,$C126,IF($A126=Datos!$D$25,$D126,$E126)),"-") -> 4.257012542
A127: Energia | B127: =Datos!C37 -> BTS_A | C127: =1/(Datos!$G295*8760)*Datos!$Y295*$F$86 -> 4.15249876e-05 | D127: =Datos!$H295*Datos!$Y295*$F$86 -> 0.1190968452 | E127: =Datos!$I295*Datos!$O295*$F$86 -> 0.2286403684 | F127: =IFERROR(SUMIFS(Datos!D:D,Datos!$A:$A,$A127,Datos!$C:$C,$B127)*IF($A127=Datos!$D$24,$C127,IF($A127=Datos!$D$25,$D127,$E127)),"-") -> 0.8775704432
A128: Energia | B128: =Datos!C38 -> BTD_A | C128: =1/(Datos!$G296*8760)*Datos!$Y296*$F$86 -> 0.0001265724462 | D128: =Datos!$H296*Datos!$Y296*$F$86 -> 0.3236211735 | E128: =Datos!$I296*Datos!$O296*$F$86 -> 0.3378621243 | F128: =IFERROR(SUMIFS(Datos!D:D,Datos!$A:$A,$A128,Datos!$C:$C,$B128)*IF($A128=Datos!$D$24,$C128,IF($A128=Datos!$D$25,$D128,$E128)),"-") -> 4.786900898
A129: 0 | B129: =Datos!C39 ->  | C129: =1/(Datos!$G297*8760)*Datos!$Y297*$F$86 ->  | D129: =Datos!$H297*Datos!$Y297*$F$86 ->  | E129: =Datos!$I297*Datos!$O297*$F$86 ->  | F129: =IFERROR(SUMIFS(Datos!D:D,Datos!$A:$A,$A129,Datos!$C:$C,$B129)*IF($A129=Datos!$D$24,$C129,IF($A129=Datos!$D$25,$D129,$E129)),"-") -> -
A130: 0 | B130: =Datos!C40 ->  | C130: =1/(Datos!$G298*8760)*Datos!$Y298*$F$86 ->  | D130: =Datos!$H298*Datos!$Y298*$F$86 ->  | E130: =Datos!$I298*Datos!$O298*$F$86 ->  | F130: =IFERROR(SUMIFS(Datos!D:D,Datos!$A:$A,$A130,Datos!$C:$C,$B130)*IF($A130=Datos!$D$24,$C130,IF($A130=Datos!$D$25,$D130,$E130)),"-") -> -
A131: 0 | B131: =Datos!C41 ->  | C131: =1/(Datos!$G299*8760)*Datos!$Y299*$F$86 ->  | D131: =Datos!$H299*Datos!$Y299*$F$86 ->  | E131: =Datos!$I299*Datos!$O299*$F$86 ->  | F131: =IFERROR(SUMIFS(Datos!D:D,Datos!$A:$A,$A131,Datos!$C:$C,$B131)*IF($A131=Datos!$D$24,$C131,IF($A131=Datos!$D$25,$D131,$E131)),"-") -> -
A132: 0 | B132: =Datos!C42 ->  | C132: =1/(Datos!$G300*8760)*Datos!$Y300*$F$86 ->  | D132: =Datos!$H300*Datos!$Y300*$F$86 ->  | E132: =Datos!$I300*Datos!$O300*$F$86 ->  | F132: =IFERROR(SUMIFS(Datos!D:D,Datos!$A:$A,$A132,Datos!$C:$C,$B132)*IF($A132=Datos!$D$24,$C132,IF($A132=Datos!$D$25,$D132,$E132)),"-") -> -
A133: 0 | B133: =Datos!C43 ->  | C133: =1/(Datos!$G301*8760)*Datos!$Y301*$F$86 ->  | D133: =Datos!$H301*Datos!$Y301*$F$86 ->  | E133: =Datos!$I301*Datos!$O301*$F$86 ->  | F133: =IFERROR(SUMIFS(Datos!D:D,Datos!$A:$A,$A133,Datos!$C:$C,$B133)*IF($A133=Datos!$D$24,$C133,IF($A133=Datos!$D$25,$D133,$E133)),"-") -> -
A134: 0 | B134: =Datos!C44 ->  | C134: =1/(Datos!$G302*8760)*Datos!$Y302*$F$86 ->  | D134: =Datos!$H302*Datos!$Y302*$F$86 ->  | E134: =Datos!$I302*Datos!$O302*$F$86 ->  | F134: =IFERROR(SUMIFS(Datos!D:D,Datos!$A:$A,$A134,Datos!$C:$C,$B134)*IF($A134=Datos!$D$24,$C134,IF($A134=Datos!$D$25,$D134,$E134)),"-") -> -
A135: 0 | B135: =Datos!C45 ->  | C135: =1/(Datos!$G303*8760)*Datos!$Y303*$F$86 ->  | D135: =Datos!$H303*Datos!$Y303*$F$86 ->  | E135: =Datos!$I303*Datos!$O303*$F$86 ->  | F135: =IFERROR(SUMIFS(Datos!D:D,Datos!$A:$A,$A135,Datos!$C:$C,$B135)*IF($A135=Datos!$D$24,$C135,IF($A135=Datos!$D$25,$D135,$E135)),"-") -> -
A136: 0 | B136: =Datos!C46 ->  | C136: =1/(Datos!$G304*8760)*Datos!$Y304*$F$86 ->  | D136: =Datos!$H304*Datos!$Y304*$F$86 ->  | E136: =Datos!$I304*Datos!$O304*$F$86 ->  | F136: =IFERROR(SUMIFS(Datos!D:D,Datos!$A:$A,$A136,Datos!$C:$C,$B136)*IF($A136=Datos!$D$24,$C136,IF($A136=Datos!$D$25,$D136,$E136)),"-") -> -
A137: 0 | B137: =Datos!C47 ->  | C137: =1/(Datos!$G305*8760)*Datos!$Y305*$F$86 ->  | D137: =Datos!$H305*Datos!$Y305*$F$86 ->  | E137: =Datos!$I305*Datos!$O305*$F$86 ->  | F137: =IFERROR(SUMIFS(Datos!D:D,Datos!$A:$A,$A137,Datos!$C:$C,$B137)*IF($A137=Datos!$D$24,$C137,IF($A137=Datos!$D$25,$D137,$E137)),"-") -> -
A138: 0 | B138: =Datos!C48 ->  | C138: =1/(Datos!$G306*8760)*Datos!$Y306*$F$86 ->  | D138: =Datos!$H306*Datos!$Y306*$F$86 ->  | E138: =Datos!$I306*Datos!$O306*$F$86 ->  | F138: =IFERROR(SUMIFS(Datos!D:D,Datos!$A:$A,$A138,Datos!$C:$C,$B138)*IF($A138=Datos!$D$24,$C138,IF($A138=Datos!$D$25,$D138,$E138)),"-") -> -
A139: 0 | B139: =Datos!C49 ->  | C139: =1/(Datos!$G307*8760)*Datos!$Y307*$F$86 ->  | D139: =Datos!$H307*Datos!$Y307*$F$86 ->  | E139: =Datos!$I307*Datos!$O307*$F$86 ->  | F139: =IFERROR(SUMIFS(Datos!D:D,Datos!$A:$A,$A139,Datos!$C:$C,$B139)*IF($A139=Datos!$D$24,$C139,IF($A139=Datos!$D$25,$D139,$E139)),"-") -> -
A140: Energia | B140: =Datos!C50 -> AP | C140: =1/(Datos!$G308*8760)*Datos!$Y308*$F$86 -> 0 | D140: =Datos!$H308*Datos!$Y308*$F$86 -> 0 | E140: =Datos!$I308*Datos!$O308*$F$86 -> 0 | F140: =IFERROR(SUMIFS(Datos!D:D,Datos!$A:$A,$A140,Datos!$C:$C,$B140)*IF($A140=Datos!$D$24,$C140,IF($A140=Datos!$D$25,$D140,$E140)),"-") -> 0
B141: Pérdida NT BT | F141: =SUM(F120:F120)*(F68-1) -> 26.84571521 | G141: =SUM(F120:F140)*(F68-1) -> 71.27317125
B142: Pérdida T BT | F142: =SUM(F120:F141)*(F69-1) -> 6.141517512
B143: Potencia BT coincidente con Máx MT | F143: =SUM(F120:F142) -> 432.7040715
A144: =Datos!D374 -> 0 | B144: =Datos!C51 ->  | C144: =1/(Datos!$G309*8760)*Datos!$Y309*$F$86 ->  | D144: =Datos!$H309*Datos!$Y309*$F$86 ->  | E144: =Datos!$I309*Datos!$O309*$F$86 ->  | F144: =IFERROR(SUMIFS(Datos!D:D,Datos!$A:$A,$A144,Datos!$C:$C,$B144)*IF($A144=Datos!$D$24,$C144,IF($A144=Datos!$D$25,$D144,$E144)),"-") -> -
A145: =Datos!D375 -> 0 | B145: =Datos!C52 ->  | C145: =1/(Datos!$G310*8760)*Datos!$Y310*$F$86 ->  | D145: =Datos!$H310*Datos!$Y310*$F$86 ->  | E145: =Datos!$I310*Datos!$O310*$F$86 ->  | F145: =IFERROR(SUMIFS(Datos!D:D,Datos!$A:$A,$A145,Datos!$C:$C,$B145)*IF($A145=Datos!$D$24,$C145,IF($A145=Datos!$D$25,$D145,$E145)),"-") -> -
A146: =Datos!D376 -> 0 | B146: =Datos!C53 ->  | C146: =1/(Datos!$G311*8760)*Datos!$Y311*$F$86 ->  | D146: =Datos!$H311*Datos!$Y311*$F$86 ->  | E146: =Datos!$I311*Datos!$O311*$F$86 ->  | F146: =IFERROR(SUMIFS(Datos!D:D,Datos!$A:$A,$A146,Datos!$C:$C,$B146)*IF($A146=Datos!$D$24,$C146,IF($A146=Datos!$D$25,$D146,$E146)),"-") -> -
A147: =Datos!D377 -> 0 | B147: =Datos!C54 ->  | C147: =1/(Datos!$G312*8760)*Datos!$Y312*$F$86 ->  | D147: =Datos!$H312*Datos!$Y312*$F$86 ->  | E147: =Datos!$I312*Datos!$O312*$F$86 ->  | F147: =IFERROR(SUMIFS(Datos!D:D,Datos!$A:$A,$A147,Datos!$C:$C,$B147)*IF($A147=Datos!$D$24,$C147,IF($A147=Datos!$D$25,$D147,$E147)),"-") -> -
A148: =Datos!D378 -> 0 | B148: =Datos!C55 ->  | C148: =1/(Datos!$G313*8760)*Datos!$Y313*$F$86 ->  | D148: =Datos!$H313*Datos!$Y313*$F$86 ->  | E148: =Datos!$I313*Datos!$O313*$F$86 ->  | F148: =IFERROR(SUMIFS(Datos!D:D,Datos!$A:$A,$A148,Datos!$C:$C,$B148)*IF($A148=Datos!$D$24,$C148,IF($A148=Datos!$D$25,$D148,$E148)),"-") -> -
A149: =Datos!D379 -> 0 | B149: =Datos!C56 ->  | C149: =1/(Datos!$G314*8760)*Datos!$Y314*$F$86 ->  | D149: =Datos!$H314*Datos!$Y314*$F$86 ->  | E149: =Datos!$I314*Datos!$O314*$F$86 ->  | F149: =IFERROR(SUMIFS(Datos!D:D,Datos!$A:$A,$A149,Datos!$C:$C,$B149)*IF($A149=Datos!$D$24,$C149,IF($A149=Datos!$D$25,$D149,$E149)),"-") -> -
A150: =Datos!D380 -> 0 | B150: =Datos!C57 ->  | C150: =1/(Datos!$G315*8760)*Datos!$Y315*$F$86 ->  | D150: =Datos!$H315*Datos!$Y315*$F$86 ->  | E150: =Datos!$I315*Datos!$O315*$F$86 ->  | F150: =IFERROR(SUMIFS(Datos!D:D,Datos!$A:$A,$A150,Datos!$C:$C,$B150)*IF($A150=Datos!$D$24,$C150,IF($A150=Datos!$D$25,$D150,$E150)),"-") -> -
A151: =Datos!D381 -> 0 | B151: =Datos!C58 ->  | C151: =1/(Datos!$G316*8760)*Datos!$Y316*$F$86 ->  | D151: =Datos!$H316*Datos!$Y316*$F$86 ->  | E151: =Datos!$I316*Datos!$O316*$F$86 ->  | F151: =IFERROR(SUMIFS(Datos!D:D,Datos!$A:$A,$A151,Datos!$C:$C,$B151)*IF($A151=Datos!$D$24,$C151,IF($A151=Datos!$D$25,$D151,$E151)),"-") -> -
A152: =Datos!D382 -> 0 | B152: =Datos!C59 ->  | C152: =1/(Datos!$G317*8760)*Datos!$Y317*$F$86 ->  | D152: =Datos!$H317*Datos!$Y317*$F$86 ->  | E152: =Datos!$I317*Datos!$O317*$F$86 ->  | F152: =IFERROR(SUMIFS(Datos!D:D,Datos!$A:$A,$A152,Datos!$C:$C,$B152)*IF($A152=Datos!$D$24,$C152,IF($A152=Datos!$D$25,$D152,$E152)),"-") -> -
A153: =Datos!D383 -> Energia | B153: =Datos!C60 -> MTD | C153: =1/(Datos!$G318*8760)*Datos!$Y318*$F$86 -> 0.0001499203669 | D153: =Datos!$H318*Datos!$Y318*$F$86 -> 0.7366670576 | E153: =Datos!$I318*Datos!$O318*$F$86 -> 0.7627698448 | F153: =IFERROR(SUMIFS(Datos!D:D,Datos!$A:$A,$A153,Datos!$C:$C,$B153)*IF($A153=Datos!$D$24,$C153,IF($A153=Datos!$D$25,$D153,$E153)),"-") -> 121.3670197
A154: =Datos!D384 -> Energia | B154: =Datos!C61 -> MTH | C154: =1/(Datos!$G319*8760)*Datos!$Y319*$F$86 -> 0.0001394897923 | D154: =Datos!$H319*Datos!$Y319*$F$86 -> 0.7112262653 | E154: =Datos!$I319*Datos!$O319*$F$86 -> 0.7306317933 | F154: =IFERROR(SUMIFS(Datos!D:D,Datos!$A:$A,$A154,Datos!$C:$C,$B154)*IF($A154=Datos!$D$24,$C154,IF($A154=Datos!$D$25,$D154,$E154)),"-") -> 23.21128153
A155: =Datos!D385 -> 0 | B155: =Datos!C62 ->  | C155: =1/(Datos!$G320*8760)*Datos!$Y320*$F$86 ->  | D155: =Datos!$H320*Datos!$Y320*$F$86 ->  | E155: =Datos!$I320*Datos!$O320*$F$86 ->  | F155: =IFERROR(SUMIFS(Datos!D:D,Datos!$A:$A,$A155,Datos!$C:$C,$B155)*IF($A155=Datos!$D$24,$C155,IF($A155=Datos!$D$25,$D155,$E155)),"-") -> -
A156: =Datos!D386 -> 0 | B156: =Datos!C63 ->  | C156: =1/(Datos!$G321*8760)*Datos!$Y321*$F$86 ->  | D156: =Datos!$H321*Datos!$Y321*$F$86 ->  | E156: =Datos!$I321*Datos!$O321*$F$86 ->  | F156: =IFERROR(SUMIFS(Datos!D:D,Datos!$A:$A,$A156,Datos!$C:$C,$B156)*IF($A156=Datos!$D$24,$C156,IF($A156=Datos!$D$25,$D156,$E156)),"-") -> -
A157: =Datos!D387 -> 0 | B157: =Datos!C64 ->  | C157: =1/(Datos!$G322*8760)*Datos!$Y322*$F$86 ->  | D157: =Datos!$H322*Datos!$Y322*$F$86 ->  | E157: =Datos!$I322*Datos!$O322*$F$86 ->  | F157: =IFERROR(SUMIFS(Datos!D:D,Datos!$A:$A,$A157,Datos!$C:$C,$B157)*IF($A157=Datos!$D$24,$C157,IF($A157=Datos!$D$25,$D157,$E157)),"-") -> -
A158: =Datos!D388 -> 0 | B158: =Datos!C65 ->  | C158: =1/(Datos!$G323*8760)*Datos!$Y323*$F$86 ->  | D158: =Datos!$H323*Datos!$Y323*$F$86 ->  | E158: =Datos!$I323*Datos!$O323*$F$86 ->  | F158: =IFERROR(SUMIFS(Datos!D:D,Datos!$A:$A,$A158,Datos!$C:$C,$B158)*IF($A158=Datos!$D$24,$C158,IF($A158=Datos!$D$25,$D158,$E158)),"-") -> -
A159: =Datos!D389 -> 0 | B159: =Datos!C66 ->  | C159: =1/(Datos!$G324*8760)*Datos!$Y324*$F$86 ->  | D159: =Datos!$H324*Datos!$Y324*$F$86 ->  | E159: =Datos!$I324*Datos!$O324*$F$86 ->  | F159: =IFERROR(SUMIFS(Datos!D:D,Datos!$A:$A,$A159,Datos!$C:$C,$B159)*IF($A159=Datos!$D$24,$C159,IF($A159=Datos!$D$25,$D159,$E159)),"-") -> -
A160: =Datos!D390 -> 0 | B160: =Datos!C67 ->  | C160: =1/(Datos!$G325*8760)*Datos!$Y325*$F$86 ->  | D160: =Datos!$H325*Datos!$Y325*$F$86 ->  | E160: =Datos!$I325*Datos!$O325*$F$86 ->  | F160: =IFERROR(SUMIFS(Datos!D:D,Datos!$A:$A,$A160,Datos!$C:$C,$B160)*IF($A160=Datos!$D$24,$C160,IF($A160=Datos!$D$25,$D160,$E160)),"-") -> -
A161: =Datos!D391 -> 0 | B161: =Datos!C68 ->  | C161: =1/(Datos!$G326*8760)*Datos!$Y326*$F$86 ->  | D161: =Datos!$H326*Datos!$Y326*$F$86 ->  | E161: =Datos!$I326*Datos!$O326*$F$86 ->  | F161: =IFERROR(SUMIFS(Datos!D:D,Datos!$A:$A,$A161,Datos!$C:$C,$B161)*IF($A161=Datos!$D$24,$C161,IF($A161=Datos!$D$25,$D161,$E161)),"-") -> -
A162: =Datos!D392 -> 0 | B162: =Datos!C69 ->  | C162: =1/(Datos!$G327*8760)*Datos!$Y327*$F$86 ->  | D162: =Datos!$H327*Datos!$Y327*$F$86 ->  | E162: =Datos!$I327*Datos!$O327*$F$86 ->  | F162: =IFERROR(SUMIFS(Datos!D:D,Datos!$A:$A,$A162,Datos!$C:$C,$B162)*IF($A162=Datos!$D$24,$C162,IF($A162=Datos!$D$25,$D162,$E162)),"-") -> -
A163: =Datos!D393 -> 0 | B163: =Datos!C70 ->  | C163: =1/(Datos!$G328*8760)*Datos!$Y328*$F$86 ->  | D163: =Datos!$H328*Datos!$Y328*$F$86 ->  | E163: =Datos!$I328*Datos!$O328*$F$86 ->  | F163: =IFERROR(SUMIFS(Datos!D:D,Datos!$A:$A,$A163,Datos!$C:$C,$B163)*IF($A163=Datos!$D$24,$C163,IF($A163=Datos!$D$25,$D163,$E163)),"-") -> -
B164: Pérdida MT | F164: =SUM(F143:F163)*(F70-1) -> 24.10067084
B165: Potencia Máxima MT | F165: =SUM(F143:F164) -> 601.3830436
C167: Coeficientes de responsabilidad (Tipo de medición) | F167: Potencia coincidente con máxima AT
C168: Energía | D168: Potencia máxima | E168: Potencia por franja horaria
A169: =A93 -> Energia | B169: =Datos!C30 -> BTS_R | C169: =1/(Datos!$G288*8760)*Datos!$Z288*$F$86 -> 0.0001070153094 | D169: =Datos!$H288*Datos!$Z288*$F$86 -> 0.2586815578 | E169: =Datos!$I288*Datos!$P288*$F$86 -> 0.3646216339 | F169: =IFERROR(SUMIFS(Datos!D:D,Datos!$A:$A,$A169,Datos!$C:$C,$B169)*IF($A169=Datos!$D$24,$C169,IF($A169=Datos!$D$25,$D169,$E169)),"-") -> 150.5571344
A170: Energia | B170: =Datos!C31 -> BTS_O | C170: =1/(Datos!$G289*8760)*Datos!$Z289*$F$86 -> 0.0001860671954 | D170: =Datos!$H289*Datos!$Z289*$F$86 -> 0.5557523692 | E170: =Datos!$I289*Datos!$P289*$F$86 -> 0.6261233547 | F170: =IFERROR(SUMIFS(Datos!D:D,Datos!$A:$A,$A170,Datos!$C:$C,$B170)*IF($A170=Datos!$D$24,$C170,IF($A170=Datos!$D$25,$D170,$E170)),"-") -> 70.91787829
A171: Energia | B171: =Datos!C32 ->  | C171: =1/(Datos!$G290*8760)*Datos!$Z290*$F$86 ->  | D171: =Datos!$H290*Datos!$Z290*$F$86 ->  | E171: =Datos!$I290*Datos!$P290*$F$86 ->  | F171: =IFERROR(SUMIFS(Datos!D:D,Datos!$A:$A,$A171,Datos!$C:$C,$B171)*IF($A171=Datos!$D$24,$C171,IF($A171=Datos!$D$25,$D171,$E171)),"-") -> -
A172: Energia | B172: =Datos!C33 -> BTS_P1 | C172: =1/(Datos!$G291*8760)*Datos!$Z291*$F$86 -> 9.293368109e-05 | D172: =Datos!$H291*Datos!$Z291*$F$86 -> 0.2074855472 | E172: =Datos!$I291*Datos!$P291*$F$86 -> 0.2670413813 | F172: =IFERROR(SUMIFS(Datos!D:D,Datos!$A:$A,$A172,Datos!$C:$C,$B172)*IF($A172=Datos!$D$24,$C172,IF($A172=Datos!$D$25,$D172,$E172)),"-") -> 8.292188709
A173: Energia | B173: =Datos!C34 -> BTS_P2 | C173: =1/(Datos!$G292*8760)*Datos!$Z292*$F$86 -> 0.0001071954262 | D173: =Datos!$H292*Datos!$Z292*$F$86 -> 0.283214375 | E173: =Datos!$I292*Datos!$P292*$F$86 -> 0.3859680766 | F173: =IFERROR(SUMIFS(Datos!D:D,Datos!$A:$A,$A173,Datos!$C:$C,$B173)*IF($A173=Datos!$D$24,$C173,IF($A173=Datos!$D$25,$D173,$E173)),"-") -> 5.133303523
A174: Energia | B174: =Datos!C35 -> BTD | C174: =1/(Datos!$G293*8760)*Datos!$Z293*$F$86 -> 0.0002050235645 | D174: =Datos!$H293*Datos!$Z293*$F$86 -> 0.6946602728 | E174: =Datos!$I293*Datos!$P293*$F$86 -> 0.7238124168 | F174: =IFERROR(SUMIFS(Datos!D:D,Datos!$A:$A,$A174,Datos!$C:$C,$B174)*IF($A174=Datos!$D$24,$C174,IF($A174=Datos!$D$25,$D174,$E174)),"-") -> 154.89485
A175: Energia | B175: =Datos!C36 -> BTH | C175: =1/(Datos!$G294*8760)*Datos!$Z294*$F$86 -> 0.0001136365572 | D175: =Datos!$H294*Datos!$Z294*$F$86 -> 0.7110833822 | E175: =Datos!$I294*Datos!$P294*$F$86 -> 0.7912500558 | F175: =IFERROR(SUMIFS(Datos!D:D,Datos!$A:$A,$A175,Datos!$C:$C,$B175)*IF($A175=Datos!$D$24,$C175,IF($A175=Datos!$D$25,$D175,$E175)),"-") -> 4.257012542
A176: Energia | B176: =Datos!C37 -> BTS_A | C176: =1/(Datos!$G295*8760)*Datos!$Z295*$F$86 -> 4.15249876e-05 | D176: =Datos!$H295*Datos!$Z295*$F$86 -> 0.1190968452 | E176: =Datos!$I295*Datos!$P295*$F$86 -> 0.2286403684 | F176: =IFERROR(SUMIFS(Datos!D:D,Datos!$A:$A,$A176,Datos!$C:$C,$B176)*IF($A176=Datos!$D$24,$C176,IF($A176=Datos!$D$25,$D176,$E176)),"-") -> 0.8775704432
A177: Energia | B177: =Datos!C38 -> BTD_A | C177: =1/(Datos!$G296*8760)*Datos!$Z296*$F$86 -> 0.0001265724462 | D177: =Datos!$H296*Datos!$Z296*$F$86 -> 0.3236211735 | E177: =Datos!$I296*Datos!$P296*$F$86 -> 0.3378621243 | F177: =IFERROR(SUMIFS(Datos!D:D,Datos!$A:$A,$A177,Datos!$C:$C,$B177)*IF($A177=Datos!$D$24,$C177,IF($A177=Datos!$D$25,$D177,$E177)),"-") -> 4.786900898
A178: 0 | B178: =Datos!C39 ->  | C178: =1/(Datos!$G297*8760)*Datos!$Z297*$F$86 ->  | D178: =Datos!$H297*Datos!$Z297*$F$86 ->  | E178: =Datos!$I297*Datos!$P297*$F$86 ->  | F178: =IFERROR(SUMIFS(Datos!D:D,Datos!$A:$A,$A178,Datos!$C:$C,$B178)*IF($A178=Datos!$D$24,$C178,IF($A178=Datos!$D$25,$D178,$E178)),"-") -> -
A179: 0 | B179: =Datos!C40 ->  | C179: =1/(Datos!$G298*8760)*Datos!$Z298*$F$86 ->  | D179: =Datos!$H298*Datos!$Z298*$F$86 ->  | E179: =Datos!$I298*Datos!$P298*$F$86 ->  | F179: =IFERROR(SUMIFS(Datos!D:D,Datos!$A:$A,$A179,Datos!$C:$C,$B179)*IF($A179=Datos!$D$24,$C179,IF($A179=Datos!$D$25,$D179,$E179)),"-") -> -
A180: 0 | B180: =Datos!C41 ->  | C180: =1/(Datos!$G299*8760)*Datos!$Z299*$F$86 ->  | D180: =Datos!$H299*Datos!$Z299*$F$86 ->  | E180: =Datos!$I299*Datos!$P299*$F$86 ->  | F180: =IFERROR(SUMIFS(Datos!D:D,Datos!$A:$A,$A180,Datos!$C:$C,$B180)*IF($A180=Datos!$D$24,$C180,IF($A180=Datos!$D$25,$D180,$E180)),"-") -> -
A181: 0 | B181: =Datos!C42 ->  | C181: =1/(Datos!$G300*8760)*Datos!$Z300*$F$86 ->  | D181: =Datos!$H300*Datos!$Z300*$F$86 ->  | E181: =Datos!$I300*Datos!$P300*$F$86 ->  | F181: =IFERROR(SUMIFS(Datos!D:D,Datos!$A:$A,$A181,Datos!$C:$C,$B181)*IF($A181=Datos!$D$24,$C181,IF($A181=Datos!$D$25,$D181,$E181)),"-") -> -
A182: 0 | B182: =Datos!C43 ->  | C182: =1/(Datos!$G301*8760)*Datos!$Z301*$F$86 ->  | D182: =Datos!$H301*Datos!$Z301*$F$86 ->  | E182: =Datos!$I301*Datos!$P301*$F$86 ->  | F182: =IFERROR(SUMIFS(Datos!D:D,Datos!$A:$A,$A182,Datos!$C:$C,$B182)*IF($A182=Datos!$D$24,$C182,IF($A182=Datos!$D$25,$D182,$E182)),"-") -> -
A183: 0 | B183: =Datos!C44 ->  | C183: =1/(Datos!$G302*8760)*Datos!$Z302*$F$86 ->  | D183: =Datos!$H302*Datos!$Z302*$F$86 ->  | E183: =Datos!$I302*Datos!$P302*$F$86 ->  | F183: =IFERROR(SUMIFS(Datos!D:D,Datos!$A:$A,$A183,Datos!$C:$C,$B183)*IF($A183=Datos!$D$24,$C183,IF($A183=Datos!$D$25,$D183,$E183)),"-") -> -
A184: 0 | B184: =Datos!C45 ->  | C184: =1/(Datos!$G303*8760)*Datos!$Z303*$F$86 ->  | D184: =Datos!$H303*Datos!$Z303*$F$86 ->  | E184: =Datos!$I303*Datos!$P303*$F$86 ->  | F184: =IFERROR(SUMIFS(Datos!D:D,Datos!$A:$A,$A184,Datos!$C:$C,$B184)*IF($A184=Datos!$D$24,$C184,IF($A184=Datos!$D$25,$D184,$E184)),"-") -> -
A185: 0 | B185: =Datos!C46 ->  | C185: =1/(Datos!$G304*8760)*Datos!$Z304*$F$86 ->  | D185: =Datos!$H304*Datos!$Z304*$F$86 ->  | E185: =Datos!$I304*Datos!$P304*$F$86 ->  | F185: =IFERROR(SUMIFS(Datos!D:D,Datos!$A:$A,$A185,Datos!$C:$C,$B185)*IF($A185=Datos!$D$24,$C185,IF($A185=Datos!$D$25,$D185,$E185)),"-") -> -
A186: 0 | B186: =Datos!C47 ->  | C186: =1/(Datos!$G305*8760)*Datos!$Z305*$F$86 ->  | D186: =Datos!$H305*Datos!$Z305*$F$86 ->  | E186: =Datos!$I305*Datos!$P305*$F$86 ->  | F186: =IFERROR(SUMIFS(Datos!D:D,Datos!$A:$A,$A186,Datos!$C:$C,$B186)*IF($A186=Datos!$D$24,$C186,IF($A186=Datos!$D$25,$D186,$E186)),"-") -> -
A187: 0 | B187: =Datos!C48 ->  | C187: =1/(Datos!$G306*8760)*Datos!$Z306*$F$86 ->  | D187: =Datos!$H306*Datos!$Z306*$F$86 ->  | E187: =Datos!$I306*Datos!$P306*$F$86 ->  | F187: =IFERROR(SUMIFS(Datos!D:D,Datos!$A:$A,$A187,Datos!$C:$C,$B187)*IF($A187=Datos!$D$24,$C187,IF($A187=Datos!$D$25,$D187,$E187)),"-") -> -
A188: 0 | B188: =Datos!C49 ->  | C188: =1/(Datos!$G307*8760)*Datos!$Z307*$F$86 ->  | D188: =Datos!$H307*Datos!$Z307*$F$86 ->  | E188: =Datos!$I307*Datos!$P307*$F$86 ->  | F188: =IFERROR(SUMIFS(Datos!D:D,Datos!$A:$A,$A188,Datos!$C:$C,$B188)*IF($A188=Datos!$D$24,$C188,IF($A188=Datos!$D$25,$D188,$E188)),"-") -> -
A189: Energia | B189: =Datos!C50 -> AP | C189: =1/(Datos!$G308*8760)*Datos!$Z308*$F$86 -> 0 | D189: =Datos!$H308*Datos!$Z308*$F$86 -> 0 | E189: =Datos!$I308*Datos!$P308*$F$86 -> 0 | F189: =IFERROR(SUMIFS(Datos!D:D,Datos!$A:$A,$A189,Datos!$C:$C,$B189)*IF($A189=Datos!$D$24,$C189,IF($A189=Datos!$D$25,$D189,$E189)),"-") -> 0
B190: Pérdida NT BT | F190: =SUM(F169:F169)*(F68-1) -> 26.84571521 | G190: =SUM(F169:F189)*(F68-1) -> 71.27317125
B191: Pérdida T BT | F191: =SUM(F169:F190)*(F69-1) -> 6.141517512
B192: Potencia BT coincidente con Máx AT | F192: =SUM(F169:F191) -> 432.7040715
A193: =A144 -> 0 | B193: =Datos!C51 ->  | C193: =1/(Datos!$G309*8760)*Datos!$Z309*$F$86 ->  | D193: =Datos!$H309*Datos!$Z309*$F$86 ->  | E193: =Datos!$I309*Datos!$P309*$F$86 ->  | F193: =IFERROR(SUMIFS(Datos!D:D,Datos!$A:$A,$A193,Datos!$C:$C,$B193)*IF($A193=Datos!$D$24,$C193,IF($A193=Datos!$D$25,$D193,$E193)),"-") -> -
A194: 0 | B194: =Datos!C52 ->  | C194: =1/(Datos!$G310*8760)*Datos!$Z310*$F$86 ->  | D194: =Datos!$H310*Datos!$Z310*$F$86 ->  | E194: =Datos!$I310*Datos!$P310*$F$86 ->  | F194: =IFERROR(SUMIFS(Datos!D:D,Datos!$A:$A,$A194,Datos!$C:$C,$B194)*IF($A194=Datos!$D$24,$C194,IF($A194=Datos!$D$25,$D194,$E194)),"-") -> -
A195: 0 | B195: =Datos!C53 ->  | C195: =1/(Datos!$G311*8760)*Datos!$Z311*$F$86 ->  | D195: =Datos!$H311*Datos!$Z311*$F$86 ->  | E195: =Datos!$I311*Datos!$P311*$F$86 ->  | F195: =IFERROR(SUMIFS(Datos!D:D,Datos!$A:$A,$A195,Datos!$C:$C,$B195)*IF($A195=Datos!$D$24,$C195,IF($A195=Datos!$D$25,$D195,$E195)),"-") -> -
A196: 0 | B196: =Datos!C54 ->  | C196: =1/(Datos!$G312*8760)*Datos!$Z312*$F$86 ->  | D196: =Datos!$H312*Datos!$Z312*$F$86 ->  | E196: =Datos!$I312*Datos!$P312*$F$86 ->  | F196: =IFERROR(SUMIFS(Datos!D:D,Datos!$A:$A,$A196,Datos!$C:$C,$B196)*IF($A196=Datos!$D$24,$C196,IF($A196=Datos!$D$25,$D196,$E196)),"-") -> -
A197: 0 | B197: =Datos!C55 ->  | C197: =1/(Datos!$G313*8760)*Datos!$Z313*$F$86 ->  | D197: =Datos!$H313*Datos!$Z313*$F$86 ->  | E197: =Datos!$I313*Datos!$P313*$F$86 ->  | F197: =IFERROR(SUMIFS(Datos!D:D,Datos!$A:$A,$A197,Datos!$C:$C,$B197)*IF($A197=Datos!$D$24,$C197,IF($A197=Datos!$D$25,$D197,$E197)),"-") -> -
A198: 0 | B198: =Datos!C56 ->  | C198: =1/(Datos!$G314*8760)*Datos!$Z314*$F$86 ->  | D198: =Datos!$H314*Datos!$Z314*$F$86 ->  | E198: =Datos!$I314*Datos!$P314*$F$86 ->  | F198: =IFERROR(SUMIFS(Datos!D:D,Datos!$A:$A,$A198,Datos!$C:$C,$B198)*IF($A198=Datos!$D$24,$C198,IF($A198=Datos!$D$25,$D198,$E198)),"-") -> -
A199: 0 | B199: =Datos!C57 ->  | C199: =1/(Datos!$G315*8760)*Datos!$Z315*$F$86 ->  | D199: =Datos!$H315*Datos!$Z315*$F$86 ->  | E199: =Datos!$I315*Datos!$P315*$F$86 ->  | F199: =IFERROR(SUMIFS(Datos!D:D,Datos!$A:$A,$A199,Datos!$C:$C,$B199)*IF($A199=Datos!$D$24,$C199,IF($A199=Datos!$D$25,$D199,$E199)),"-") -> -
A200: 0 | B200: =Datos!C58 ->  | C200: =1/(Datos!$G316*8760)*Datos!$Z316*$F$86 ->  | D200: =Datos!$H316*Datos!$Z316*$F$86 ->  | E200: =Datos!$I316*Datos!$P316*$F$86 ->  | F200: =IFERROR(SUMIFS(Datos!D:D,Datos!$A:$A,$A200,Datos!$C:$C,$B200)*IF($A200=Datos!$D$24,$C200,IF($A200=Datos!$D$25,$D200,$E200)),"-") -> -
A201: 0 | B201: =Datos!C59 ->  | C201: =1/(Datos!$G317*8760)*Datos!$Z317*$F$86 ->  | D201: =Datos!$H317*Datos!$Z317*$F$86 ->  | E201: =Datos!$I317*Datos!$P317*$F$86 ->  | F201: =IFERROR(SUMIFS(Datos!D:D,Datos!$A:$A,$A201,Datos!$C:$C,$B201)*IF($A201=Datos!$D$24,$C201,IF($A201=Datos!$D$25,$D201,$E201)),"-") -> -
A202: Energia | B202: =Datos!C60 -> MTD | C202: =1/(Datos!$G318*8760)*Datos!$Z318*$F$86 -> 0.0001499203669 | D202: =Datos!$H318*Datos!$Z318*$F$86 -> 0.7366670576 | E202: =Datos!$I318*Datos!$P318*$F$86 -> 0.7627698448 | F202: =IFERROR(SUMIFS(Datos!D:D,Datos!$A:$A,$A202,Datos!$C:$C,$B202)*IF($A202=Datos!$D$24,$C202,IF($A202=Datos!$D$25,$D202,$E202)),"-") -> 121.3670197
A203: Energia | B203: =Datos!C61 -> MTH | C203: =1/(Datos!$G319*8760)*Datos!$Z319*$F$86 -> 0.0001394897923 | D203: =Datos!$H319*Datos!$Z319*$F$86 -> 0.7112262653 | E203: =Datos!$I319*Datos!$P319*$F$86 -> 0.7306317933 | F203: =IFERROR(SUMIFS(Datos!D:D,Datos!$A:$A,$A203,Datos!$C:$C,$B203)*IF($A203=Datos!$D$24,$C203,IF($A203=Datos!$D$25,$D203,$E203)),"-") -> 23.21128153
A204: 0 | B204: =Datos!C62 ->  | C204: =1/(Datos!$G320*8760)*Datos!$Z320*$F$86 ->  | D204: =Datos!$H320*Datos!$Z320*$F$86 ->  | E204: =Datos!$I320*Datos!$P320*$F$86 ->  | F204: =IFERROR(SUMIFS(Datos!D:D,Datos!$A:$A,$A204,Datos!$C:$C,$B204)*IF($A204=Datos!$D$24,$C204,IF($A204=Datos!$D$25,$D204,$E204)),"-") -> -
A205: 0 | B205: =Datos!C63 ->  | C205: =1/(Datos!$G321*8760)*Datos!$Z321*$F$86 ->  | D205: =Datos!$H321*Datos!$Z321*$F$86 ->  | E205: =Datos!$I321*Datos!$P321*$F$86 ->  | F205: =IFERROR(SUMIFS(Datos!D:D,Datos!$A:$A,$A205,Datos!$C:$C,$B205)*IF($A205=Datos!$D$24,$C205,IF($A205=Datos!$D$25,$D205,$E205)),"-") -> -
A206: 0 | B206: =Datos!C64 ->  | C206: =1/(Datos!$G322*8760)*Datos!$Z322*$F$86 ->  | D206: =Datos!$H322*Datos!$Z322*$F$86 ->  | E206: =Datos!$I322*Datos!$P322*$F$86 ->  | F206: =IFERROR(SUMIFS(Datos!D:D,Datos!$A:$A,$A206,Datos!$C:$C,$B206)*IF($A206=Datos!$D$24,$C206,IF($A206=Datos!$D$25,$D206,$E206)),"-") -> -
A207: 0 | B207: =Datos!C65 ->  | C207: =1/(Datos!$G323*8760)*Datos!$Z323*$F$86 ->  | D207: =Datos!$H323*Datos!$Z323*$F$86 ->  | E207: =Datos!$I323*Datos!$P323*$F$86 ->  | F207: =IFERROR(SUMIFS(Datos!D:D,Datos!$A:$A,$A207,Datos!$C:$C,$B207)*IF($A207=Datos!$D$24,$C207,IF($A207=Datos!$D$25,$D207,$E207)),"-") -> -
A208: 0 | B208: =Datos!C66 ->  | C208: =1/(Datos!$G324*8760)*Datos!$Z324*$F$86 ->  | D208: =Datos!$H324*Datos!$Z324*$F$86 ->  | E208: =Datos!$I324*Datos!$P324*$F$86 ->  | F208: =IFERROR(SUMIFS(Datos!D:D,Datos!$A:$A,$A208,Datos!$C:$C,$B208)*IF($A208=Datos!$D$24,$C208,IF($A208=Datos!$D$25,$D208,$E208)),"-") -> -
... 178 more rows
